{"text_format":"1","workbook":"xlsx","n_sheets":4,"sheets":["Kurzanleitung","Titelseite","Anlagenübersicht","Anlagespiegel FV"],"not_rendered":{"charts":0,"images":15,"macros":1,"external_links":0,"defined_names":5,"comments":1,"pivot_tables":0},"unopened":[],"bounds":{"document_bytes":16777216,"sheet_cells":100000,"rows_first":2000,"rows_last":500,"rows_between":2000,"halvings":0,"cell_chars":16384,"cell_head_chars":4096},"cells_cut":0,"cells_raw":0,"read":"whole","date_system":"1900"}

{"sheet":"Kurzanleitung","index":0,"n_rows":179,"n_cols":4,"rows_kept":179,"cut":false,"hidden":false,"merged":[[139,9,139,14],[128,10,129,14],[125,0,125,2],[78,3,81,7],[47,0,47,2],[100,3,101,7],[110,0,111,7],[113,0,113,2],[113,3,113,7],[47,3,48,7],[61,0,61,2],[127,0,127,2],[127,3,131,7],[114,3,121,7],[41,0,41,7],[43,0,43,2],[45,0,45,2],[167,3,174,7],[178,0,179,7],[133,0,133,2],[133,3,136,7],[137,0,137,2],[137,3,137,7],[138,3,139,7],[148,0,149,7],[152,3,153,7],[156,3,157,7],[183,8,183,10],[184,8,184,10],[0,0,3,7],[89,3,91,7],[93,3,97,7],[99,3,99,7],[66,0,66,2],[66,3,67,7],[75,0,75,7],[77,3,77,7],[20,0,20,7],[25,0,26,7],[17,1,18,7],[86,3,88,7],[63,0,63,2],[83,3,84,7]]}
["Kurzanleitung zum Tool\nAnlagenbuchhaltung für die Finanz- und Sachanlagen des Finanzvermögens\n\n"]
[]
[]
[]
[]
["Grundsätzliches"]
[]
["●","Die Eingabefelder sind grün gekennzeichnet!"]
[]
["●","Für die volle Funktionalität des Tools müssen die Makros aktiviert werden."]
[]
[]
[]
[]
[]
[]
[]
["●","Das Tool verfügt über einen Blattschutz. Dieser kann jedoch bei Bedarf ohne Passwortschutz aufgehoben werden."]
[]
[]
[]
[]
[]
[]
[]
["Beachten Sie, dass manuelle Anpassungen die Funktionalität des Tools einschränken können (z.B. durch unbeabsichtigte Löschung von hinterlegten Formeln)!"]
[]
[]
[]
["Titelseite"]
[]
["Auf der Lasche \"Titelseite\" sind Gemeindename und Rechnungsjahr zu erfassen."]
[]
[]
[]
[]
[]
[]
[]
["Anlagenübersicht"]
[]
["Auf der Lasche \"Anlagenübersicht\" Spalten A bis H werden Informationen zu den einzelnen Anlagen erfasst."]
[]
["Spalte A \"Nr.\":",null,null,"Anlagennummer, kann frei gewählt werden"]
[]
["Spalte B \"Bezeichnung\":",null,null,"Bezeichnung der Anlage"]
[]
["Spalte H \"Anlagekategorie\":",null,null,"Zuweisung der Anlage zu einer vorgegebenen Anlagekategorie."]
[]
[]
[]
[]
[]
[]
[]
[]
[]
[null,null,null,"Einblendnung von weiteren Anlageninformationen "]
[]
[null,null,null,"Ausblendung von weiteren Anlageninformationen"]
[]
["Spalte C \"Erwerbsdatum\":",null,null,"Erwerbsdatum der Anlage"]
[]
["Spalte D \"Veräusserungsdatum\":",null,null,"Veräusserungsdatum der Anlage"]
[]
[]
["Spalten E bis G \"Information\":",null,null,"Freifelder, können beliebig bezeichnet werden \n(z.B. Parzellennummer, letzte Schätzung, Valor)"]
[]
[]
[]
[]
[]
[]
[]
[]
["Die Spalten I bis M geben Auskunft über den Stand und die Veränderung der Anschaffungskosten einer Anlage."]
[]
["Spalte I \"Stand per 01.01.\":",null,null,"Anschaffungskosten per 01.01."]
[null,null,null,"Diese Spalte muss nur bei der Einrichtung der Anlagenbuchhaltung bearbeitet werden. In den Folgejahren erfolgt bei der Jahreseröffnung jeweils ein automatischer Übertrag aus der Spalte M \"Stand per 31.12.\". "]
[]
[]
[]
[]
["Spalte J \"Zugänge (+)\":",null,null,"Erwerb im laufenden Rechnungsjahr sowie Übertragungen von Anlagen des Verwaltungsvermögens"]
[]
[]
["Spalte K \"Abgänge (-)\":",null,null,"Veräusserungen im laufenden Rechnungsjahr sowie Übertragungen von Anlagen ins Verwaltungsvermögen im laufenden Rechnungsjahr."]
[]
[]
[null,null,null,"Achtung! Vergessen Sie nicht allfällige kumulierte Wertberichtigungen unter der Spalte Q \"Abgänge\" zu korrigieren!"]
[]
[]
[]
["Spalte L \"Umglied. (+/-)\":",null,null,"Umbuchungen zwischen den verschiedenen Bilanzkonten des Finanzvermögens im laufenden Rechnungsjahr. \nAchtung! Vergessen Sie nicht allfällige kumulierte Wertberichtigungen unter der Spalte R \"Umglied. (+/-)\" zu korrigieren!"]
[]
[]
[]
[]
[]
["Spalte M \"Stand per 31.12.\":",null,null,"Anschaffungskosten per 31.12."]
[null,null,null,"Wert wird aufgrund der Eintragungen in den Spalten I bis L errechnet."]
[]
[]
[]
[]
[]
[]
[]
[]
[]
["Die Spalten N bis S geben Auskunft über den Stand und die Veränderung der kumulierten Wertberichtigungen einer Anlage."]
[]
[]
["Spalte N \"Stand per 01.01. (+/-)\":",null,null,"kumulierte Wertberichtigungen per 01.01."]
[null,null,null,"Diese Spalte darf nur bei der Einrichtung der Anlagenbuchhaltung bearbeitet werden. Es ist jedoch davon auszugehen, dass mit der Einrichtung der Anlagenbuchhaltung die mit dem Neubewertungstool ermittelten Werte als \"Ganzes\" inkl. der kumulierten Wertberichtigungen in der Spalte I \"Stand per 01.01.\" erfasst werden. \nIn den Folgejahren erfolgt bei der Jahreseröffnung jeweils ein automatischer Übertrag aus der Spalte S \"Stand per 31.12.\". "]
[]
[]
[]
[]
[]
[]
[]
[]
["Spalte O \"Wertberichtigungen (-):",null,null,"negative Wertkorrekturen im laufenden Rechnungsjahr"]
[]
["Spalte P \"Wertaufholungen (+):",null,null,"positive Wertkorrekturen im laufenden Rechnungsjahr"]
[]
["Spalte Q \"Abgänge (+/-):",null,null,"Abgänge von Wertberichtigungen bei Veräusserung oder Übertragungen von Anlagen ins Verwaltungsvermögen im laufenden Rechnungsjahr. \nDiese Spalte hat die gleiche Funktion wie die Spalte K \"Abgänge (-)\"."]
[]
[]
[]
[]
[]
["Spalte R \"Umglied. (+/-)\":",null,null,"Umbuchungen zwischen den verschiedenen Bilanzkonten des Finanzvermögens im laufenden Rechnungsjahr. Diese Spalte hat die gleiche Funktion wie die Spalte L \"Umglied. (+/-)\"."]
[]
[]
[]
["Spalte S \"Stand per 31.12.\":",null,null,"kumulierte Werberichtigungen per 31.12."]
[null,null,null,"Wert wird aufgrund der Eintragungen in den Spalten N bis R errechnet."]
[]
[]
[]
[]
[]
[]
[]
[]
[]
["Die Spalten T und U geben Auskunft über den Buchwert einer Anlage."]
[]
[]
["Spalte T \"Stand per 01.01.\":",null,null,"Buchwert der Anlage per 01.01."]
[null,null,null,"Der Wert muss zwingend mit der Finanzbuchhaltung übereinstimmen."]
[]
[]
["Spalte U \"Stand per 31.12.\":",null,null,"Buchwert der Anlage per 31.12."]
[null,null,null,"Der Wert muss zwingend mit der Finanzbuchhaltung übereinstimmen."]
[]
[]
[]
[]
[]
[]
[]
[]
[]
[]
["             Rücksetzungs-Button:",null,null,"Mit dieser Funktion können die Werte per 31.12. auf den 01.01. des Folgejahres übertragen werden.\nAchtung! Dieser Vorgang lässt sich nicht rückgängig machen. Wir empfehlen eine Sicherungskopie zu machen!\nSobald der Vorgang abgeschlossen ist, befinden Sie sich im nächsten Rechnungsjahr. Wichtig! Die Jahreszahl muss auf der Lasche \"Titelseite\" manuell angepasst werden."]
[]
[]
[]
[]
[]
[]
[]
[]
["Anlagespiegel FV"]
[]
["Unter der Lasche \"Anlagespiegel FV\" ist der vom Tool automatisch generierte Anlagespiegel des Finanzvermögens zu finden. Dieser ist im Anhang zur Jahresrechnung zu publizieren."]

{"sheet":"Titelseite","index":1,"n_rows":31,"n_cols":7,"rows_kept":31,"cut":false,"hidden":false,"merged":[[17,0,17,6],[5,0,5,6],[6,0,6,6],[11,11,12,12],[0,0,0,1],[10,0,10,6],[12,0,12,6],[15,0,15,6],[8,0,8,6],[13,0,13,6]]}
["Eingabefelder",null,null,null,null,null,"© Amt für Gemeinden und Bürgerrecht des Kantons St.Gallen"]
[null,null,null,null,null,null,"Version 1.4*"]
[null,null,null,null,null,null,8.2020999999999997]
[]
["Haftungsausschluss:"]
["Die Software und Ihre Dokumentation wird \"wie sie ist\" und ohne jede Gewährleistung für \nFunktion, Korrektheit oder Fehlerfreiheit zur Verfügung gestellt. Für jedweden direkten oder indirekten Schaden - insbesondere Schaden an anderer Software, Schaden an Hardware, Schaden durch Nutzungsausfall und Schaden durch Funktionsuntüchtigkeit der Software - kann der Autor nicht haftbar gemacht werden. Ausschliesslich der Benutzer haftet für die Folgen der Benutzung dieser Software."]
["Diese Software wurde mit grösster Sorgfalt entwickelt, jedoch können Fehler niemals \nausgeschlossen werden. Es kann daher keine Gewähr für die Sicherheit Ihrer Daten übernommen werden."]
[]
["Anlagenbuchhaltung"]
[]
["für die "]
[]
["Finanz- und Sachanlagen"]
["des Finanzvermögens"]
[]
["der"]
[]
["Gemeinde Musterhausen"]
[]
["Rechnungsjahr",null,null,2019]
[]
[]
[]
["Änderungsprotokoll"]
[]
["* Änderungen gegenüber Version 1.3"]
["- Lasche «Anlagespiegel FV»: Anpassung Kontobezeichnung der Gliederung 108 auf «Sach- und immaterielle Anlagen FV»"]
["- Lasche «Anlagespiegel FV»: Anpassung Kontobezeichnung der Gliederung 1089 auf «Übrige Sach- und immaterielle Anlagen FV»"]
[]
["* Änderung gegenüber Version 1.2"]
["- Lasche «Anlagespiegel FV»: Anpassung Kontobezeichnung der Gliederung 107 auf «Langfristige Finanzanlagen»"]

{"sheet":"Anlagenübersicht","index":2,"n_rows":1503,"n_cols":26,"rows_kept":1503,"cut":false,"hidden":false,"merged":[[2,18,2,20],[7,0,7,1],[7,2,7,6],[3,18,3,20],[7,8,7,12],[7,13,7,18],[7,19,7,20],[4,16,5,20]]}
["Eingabefelder"]
[]
["Anlagenübersicht Finanz- und Sachanlagen des Finanzvermögens",null,null,null,null,null,null,null,null,null,null,null,null,null,null,null,null,null,{"$f":"\"Rechnungsjahr \"&TEXT(Titelseite!D20,\"0\")","v":"Rechnungsjahr 2019"}]
[null,null,null,null,null,null,null,null,null,null,null,null,null,null,null,null,null,null,{"$f":"Titelseite!A18","v":"Gemeinde Musterhausen"}]
["Funktionsleiste",null,null,null,null,null,null,null,null,null,null,null,null,null,null,null,"Rücksetzungs-Button\nMit dieser Funktion können die Werte per 31.12. auf\nden 01.01. des Folgejahres übertragen werden.\nAchtung! Dieser Vorgang lässt sich nicht rückgängig machen. \nWir empfehlen eine Sicherungskopie zu machen!"]
[]
[]
["Anlagegut",null,"Weitere Anlageinformationen",null,null,null,null,"Anlagekategorie","Anschaffungskosten",null,null,null,null,"Kumulierte Wertberichtigungen",null,null,null,null,null,"Buchwert",null,null,null,null,null,"Hilfsspalte"]
["Nr.","Bezeichnung","Erwerbsdatum","Veräusserungsdatum","Information","Information","Information",null,"Stand \nper 01.01.","Zugänge (+)","Abgänge (-)","Umglied. (+/-)","Stand \nper 31.12.","Stand \nper 01.01. (+/-)","Wert-berichtigungen (-)","Wert-\naufholungen (+)","Abgänge (+/-)","Umglied. (+/-)","Stand \nper 31.12.","Stand\nper 01.01.","Stand \nper 31.12."]
[]
["filtern","filtern",null,null,null,null,null,"filtern"]
[null,null,null,null,null,null,null,null,0,null,null,null,{"$f":"SUM(I12:L12)","v":0},0,null,null,null,null,{"$f":"SUM(N12:R12)","v":0},{"$f":"I12+N12","v":0},{"$f":"M12+S12","v":0},null,null,null,null,"1070 Aktien und Anteilscheine"]
[null,null,null,null,null,null,null,null,0,null,null,null,0,0,null,null,null,null,0,0,0,null,null,null,null,"1071 Verzinsliche Anlagen"]
[null,null,null,null,null,null,null,null,0,null,null,null,0,0,null,null,null,null,0,0,0,null,null,null,null,"1072 Langfristige Forderungen"]
[null,null,null,null,null,null,null,null,0,null,null,null,0,0,null,null,null,null,0,0,0,null,null,null,null,"1079 Übrige langfristige Finanzanlagen"]
[null,null,null,null,null,null,null,null,0,null,null,null,0,0,null,null,null,null,0,0,0,null,null,null,null,"1080 Grundstücke FV"]
[null,null,null,null,null,null,null,null,0,null,null,null,0,0,null,null,null,null,0,0,0,null,null,null,null,"1084 Gebäude FV"]
[null,null,null,null,null,null,null,null,0,null,null,null,0,0,null,null,null,null,0,0,0,null,null,null,null,"1086 Mobilien FV"]
[null,null,null,null,null,null,null,null,0,null,null,null,0,0,null,null,null,null,0,0,0,null,null,null,null,"1089 Übrige Sach- und immaterielle Anlagen FV"]
[null,null,null,null,null,null,null,null,0,null,null,null,0,0,null,null,null,null,0,0,0]
[null,null,null,null,null,null,null,null,0,null,null,null,0,0,null,null,null,null,0,0,0]
[null,null,null,null,null,null,null,null,0,null,null,null,0,0,null,null,null,null,0,0,0]
[null,null,null,null,null,null,null,null,0,null,null,null,0,0,null,null,null,null,0,0,0]
[null,null,null,null,null,null,null,null,0,null,null,null,0,0,null,null,null,null,0,0,0]
[null,null,null,null,null,null,null,null,0,null,null,null,0,0,null,null,null,null,0,0,0]
[null,null,null,null,null,null,null,null,0,null,null,null,0,0,null,null,null,null,0,0,0]
[null,null,null,null,null,null,null,null,0,null,null,null,0,0,null,null,null,null,0,0,0]
[null,null,null,null,null,null,null,null,0,null,null,null,0,0,null,null,null,null,0,0,0]
[null,null,null,null,null,null,null,null,0,null,null,null,0,0,null,null,null,null,0,0,0]
[null,null,null,null,null,null,null,null,0,null,null,null,0,0,null,null,null,null,0,0,0]
[null,null,null,null,null,null,null,null,0,null,null,null,0,0,null,null,null,null,0,0,0]
[null,null,null,null,null,null,null,null,0,null,null,null,0,0,null,null,null,null,0,0,0]
[null,null,null,null,null,null,null,null,0,null,null,null,0,0,null,null,null,null,0,0,0]
[null,null,null,null,null,null,null,null,0,null,null,null,0,0,null,null,null,null,0,0,0]
[null,null,null,null,null,null,null,null,0,null,null,null,0,0,null,null,null,null,0,0,0]
[null,null,null,null,null,null,null,null,0,null,null,null,0,0,null,null,null,null,0,0,0]
[null,null,null,null,null,null,null,null,0,null,null,null,0,0,null,null,null,null,0,0,0]
[null,null,null,null,null,null,null,null,0,null,null,null,0,0,null,null,null,null,0,0,0]
[null,null,null,null,null,null,null,null,0,null,null,null,0,0,null,null,null,null,0,0,0]
[null,null,null,null,null,null,null,null,0,null,null,null,0,0,null,null,null,null,0,0,0]
[null,null,null,null,null,null,null,null,0,null,null,null,0,0,null,null,null,null,0,0,0]
[null,null,null,null,null,null,null,null,0,null,null,null,0,0,null,null,null,null,0,0,0]
[null,null,null,null,null,null,null,null,0,null,null,null,0,0,null,null,null,null,0,0,0]
[null,null,null,null,null,null,null,null,0,null,null,null,0,0,null,null,null,null,0,0,0]
[null,null,null,null,null,null,null,null,0,null,null,null,0,0,null,null,null,null,0,0,0]
[null,null,null,null,null,null,null,null,0,null,null,null,0,0,null,null,null,null,0,0,0]
[null,null,null,null,null,null,null,null,0,null,null,null,0,0,null,null,null,null,0,0,0]
[null,null,null,null,null,null,null,null,0,null,null,null,0,0,null,null,null,null,0,0,0]
[null,null,null,null,null,null,null,null,0,null,null,null,0,0,null,null,null,null,0,0,0]
[null,null,null,null,null,null,null,null,0,null,null,null,0,0,null,null,null,null,0,0,0]
[null,null,null,null,null,null,null,null,0,null,null,null,0,0,null,null,null,null,0,0,0]
[null,null,null,null,null,null,null,null,0,null,null,null,0,0,null,null,null,null,0,0,0]
[null,null,null,null,null,null,null,null,0,null,null,null,0,0,null,null,null,null,0,0,0]
[null,null,null,null,null,null,null,null,0,null,null,null,0,0,null,null,null,null,0,0,0]
[null,null,null,null,null,null,null,null,0,null,null,null,0,0,null,null,null,null,0,0,0]
[null,null,null,null,null,null,null,null,0,null,null,null,0,0,null,null,null,null,0,0,0]
[null,null,null,null,null,null,null,null,0,null,null,null,0,0,null,null,null,null,0,0,0]
[null,null,null,null,null,null,null,null,0,null,null,null,0,0,null,null,null,null,0,0,0]
[null,null,null,null,null,null,null,null,0,null,null,null,0,0,null,null,null,null,0,0,0]
[null,null,null,null,null,null,null,null,0,null,null,null,0,0,null,null,null,null,0,0,0]
[null,null,null,null,null,null,null,null,0,null,null,null,0,0,null,null,null,null,0,0,0]
[null,null,null,null,null,null,null,null,0,null,null,null,0,0,null,null,null,null,0,0,0]
[null,null,null,null,null,null,null,null,0,null,null,null,0,0,null,null,null,null,0,0,0]
[null,null,null,null,null,null,null,null,0,null,null,null,0,0,null,null,null,null,0,0,0]
[null,null,null,null,null,null,null,null,0,null,null,null,0,0,null,null,null,null,0,0,0]
[null,null,null,null,null,null,null,null,0,null,null,null,0,0,null,null,null,null,0,0,0]
[null,null,null,null,null,null,null,null,0,null,null,null,0,0,null,null,null,null,0,0,0]
[null,null,null,null,null,null,null,null,0,null,null,null,0,0,null,null,null,null,0,0,0]
[null,null,null,null,null,null,null,null,0,null,null,null,0,0,null,null,null,null,0,0,0]
[null,null,null,null,null,null,null,null,0,null,null,null,0,0,null,null,null,null,0,0,0]
[null,null,null,null,null,null,null,null,0,null,null,null,0,0,null,null,null,null,0,0,0]
[null,null,null,null,null,null,null,null,0,null,null,null,0,0,null,null,null,null,0,0,0]
[null,null,null,null,null,null,null,null,0,null,null,null,0,0,null,null,null,null,0,0,0]
[null,null,null,null,null,null,null,null,0,null,null,null,0,0,null,null,null,null,0,0,0]
[null,null,null,null,null,null,null,null,0,null,null,null,0,0,null,null,null,null,0,0,0]
[null,null,null,null,null,null,null,null,0,null,null,null,{"$f":"SUM(I76:L76)","v":0},0,null,null,null,null,{"$f":"SUM(N76:R76)","v":0},{"$f":"I76+N76","v":0},{"$f":"M76+S76","v":0}]
[null,null,null,null,null,null,null,null,0,null,null,null,0,0,null,null,null,null,0,0,0]
[null,null,null,null,null,null,null,null,0,null,null,null,0,0,null,null,null,null,0,0,0]
[null,null,null,null,null,null,null,null,0,null,null,null,0,0,null,null,null,null,0,0,0]
[null,null,null,null,null,null,null,null,0,null,null,null,0,0,null,null,null,null,0,0,0]
[null,null,null,null,null,null,null,null,0,null,null,null,0,0,null,null,null,null,0,0,0]
[null,null,null,null,null,null,null,null,0,null,null,null,0,0,null,null,null,null,0,0,0]
[null,null,null,null,null,null,null,null,0,null,null,null,0,0,null,null,null,null,0,0,0]
[null,null,null,null,null,null,null,null,0,null,null,null,0,0,null,null,null,null,0,0,0]
[null,null,null,null,null,null,null,null,0,null,null,null,0,0,null,null,null,null,0,0,0]
[null,null,null,null,null,null,null,null,0,null,null,null,0,0,null,null,null,null,0,0,0]
[null,null,null,null,null,null,null,null,0,null,null,null,0,0,null,null,null,null,0,0,0]
[null,null,null,null,null,null,null,null,0,null,null,null,0,0,null,null,null,null,0,0,0]
[null,null,null,null,null,null,null,null,0,null,null,null,0,0,null,null,null,null,0,0,0]
[null,null,null,null,null,null,null,null,0,null,null,null,0,0,null,null,null,null,0,0,0]
[null,null,null,null,null,null,null,null,0,null,null,null,0,0,null,null,null,null,0,0,0]
[null,null,null,null,null,null,null,null,0,null,null,null,0,0,null,null,null,null,0,0,0]
[null,null,null,null,null,null,null,null,0,null,null,null,0,0,null,null,null,null,0,0,0]
[null,null,null,null,null,null,null,null,0,null,null,null,0,0,null,null,null,null,0,0,0]
[null,null,null,null,null,null,null,null,0,null,null,null,0,0,null,null,null,null,0,0,0]
[null,null,null,null,null,null,null,null,0,null,null,null,0,0,null,null,null,null,0,0,0]
[null,null,null,null,null,null,null,null,0,null,null,null,0,0,null,null,null,null,0,0,0]
[null,null,null,null,null,null,null,null,0,null,null,null,0,0,null,null,null,null,0,0,0]
[null,null,null,null,null,null,null,null,0,null,null,null,0,0,null,null,null,null,0,0,0]
[null,null,null,null,null,null,null,null,0,null,null,null,0,0,null,null,null,null,0,0,0]
[null,null,null,null,null,null,null,null,0,null,null,null,0,0,null,null,null,null,0,0,0]
[null,null,null,null,null,null,null,null,0,null,null,null,0,0,null,null,null,null,0,0,0]
[null,null,null,null,null,null,null,null,0,null,null,null,0,0,null,null,null,null,0,0,0]
[null,null,null,null,null,null,null,null,0,null,null,null,0,0,null,null,null,null,0,0,0]
[null,null,null,null,null,null,null,null,0,null,null,null,0,0,null,null,null,null,0,0,0]
[null,null,null,null,null,null,null,null,0,null,null,null,0,0,null,null,null,null,0,0,0]
[null,null,null,null,null,null,null,null,0,null,null,null,0,0,null,null,null,null,0,0,0]
[null,null,null,null,null,null,null,null,0,null,null,null,0,0,null,null,null,null,0,0,0]
[null,null,null,null,null,null,null,null,0,null,null,null,0,0,null,null,null,null,0,0,0]
[null,null,null,null,null,null,null,null,0,null,null,null,0,0,null,null,null,null,0,0,0]
[null,null,null,null,null,null,null,null,0,null,null,null,0,0,null,null,null,null,0,0,0]
[null,null,null,null,null,null,null,null,0,null,null,null,0,0,null,null,null,null,0,0,0]
[null,null,null,null,null,null,null,null,0,null,null,null,0,0,null,null,null,null,0,0,0]
[null,null,null,null,null,null,null,null,0,null,null,null,0,0,null,null,null,null,0,0,0]
[null,null,null,null,null,null,null,null,0,null,null,null,0,0,null,null,null,null,0,0,0]
[null,null,null,null,null,null,null,null,0,null,null,null,0,0,null,null,null,null,0,0,0]
[null,null,null,null,null,null,null,null,0,null,null,null,0,0,null,null,null,null,0,0,0]
[null,null,null,null,null,null,null,null,0,null,null,null,0,0,null,null,null,null,0,0,0]
[null,null,null,null,null,null,null,null,0,null,null,null,0,0,null,null,null,null,0,0,0]
[null,null,null,null,null,null,null,null,0,null,null,null,0,0,null,null,null,null,0,0,0]
[null,null,null,null,null,null,null,null,0,null,null,null,0,0,null,null,null,null,0,0,0]
[null,null,null,null,null,null,null,null,0,null,null,null,0,0,null,null,null,null,0,0,0]
[null,null,null,null,null,null,null,null,0,null,null,null,0,0,null,null,null,null,0,0,0]
[null,null,null,null,null,null,null,null,0,null,null,null,0,0,null,null,null,null,0,0,0]
[null,null,null,null,null,null,null,null,0,null,null,null,0,0,null,null,null,null,0,0,0]
[null,null,null,null,null,null,null,null,0,null,null,null,0,0,null,null,null,null,0,0,0]
[null,null,null,null,null,null,null,null,0,null,null,null,0,0,null,null,null,null,0,0,0]
[null,null,null,null,null,null,null,null,0,null,null,null,0,0,null,null,null,null,0,0,0]
[null,null,null,null,null,null,null,null,0,null,null,null,0,0,null,null,null,null,0,0,0]
[null,null,null,null,null,null,null,null,0,null,null,null,0,0,null,null,null,null,0,0,0]
[null,null,null,null,null,null,null,null,0,null,null,null,0,0,null,null,null,null,0,0,0]
[null,null,null,null,null,null,null,null,0,null,null,null,0,0,null,null,null,null,0,0,0]
[null,null,null,null,null,null,null,null,0,null,null,null,0,0,null,null,null,null,0,0,0]
[null,null,null,null,null,null,null,null,0,null,null,null,0,0,null,null,null,null,0,0,0]
[null,null,null,null,null,null,null,null,0,null,null,null,0,0,null,null,null,null,0,0,0]
[null,null,null,null,null,null,null,null,0,null,null,null,0,0,null,null,null,null,0,0,0]
[null,null,null,null,null,null,null,null,0,null,null,null,0,0,null,null,null,null,0,0,0]
[null,null,null,null,null,null,null,null,0,null,null,null,0,0,null,null,null,null,0,0,0]
[null,null,null,null,null,null,null,null,0,null,null,null,0,0,null,null,null,null,0,0,0]
[null,null,null,null,null,null,null,null,0,null,null,null,{"$f":"SUM(I140:L140)","v":0},0,null,null,null,null,{"$f":"SUM(N140:R140)","v":0},{"$f":"I140+N140","v":0},{"$f":"M140+S140","v":0}]
[null,null,null,null,null,null,null,null,0,null,null,null,0,0,null,null,null,null,0,0,0]
[null,null,null,null,null,null,null,null,0,null,null,null,0,0,null,null,null,null,0,0,0]
[null,null,null,null,null,null,null,null,0,null,null,null,0,0,null,null,null,null,0,0,0]
[null,null,null,null,null,null,null,null,0,null,null,null,0,0,null,null,null,null,0,0,0]
[null,null,null,null,null,null,null,null,0,null,null,null,0,0,null,null,null,null,0,0,0]
[null,null,null,null,null,null,null,null,0,null,null,null,0,0,null,null,null,null,0,0,0]
[null,null,null,null,null,null,null,null,0,null,null,null,0,0,null,null,null,null,0,0,0]
[null,null,null,null,null,null,null,null,0,null,null,null,0,0,null,null,null,null,0,0,0]
[null,null,null,null,null,null,null,null,0,null,null,null,0,0,null,null,null,null,0,0,0]
[null,null,null,null,null,null,null,null,0,null,null,null,0,0,null,null,null,null,0,0,0]
[null,null,null,null,null,null,null,null,0,null,null,null,0,0,null,null,null,null,0,0,0]
[null,null,null,null,null,null,null,null,0,null,null,null,0,0,null,null,null,null,0,0,0]
[null,null,null,null,null,null,null,null,0,null,null,null,0,0,null,null,null,null,0,0,0]
[null,null,null,null,null,null,null,null,0,null,null,null,0,0,null,null,null,null,0,0,0]
[null,null,null,null,null,null,null,null,0,null,null,null,0,0,null,null,null,null,0,0,0]
[null,null,null,null,null,null,null,null,0,null,null,null,0,0,null,null,null,null,0,0,0]
[null,null,null,null,null,null,null,null,0,null,null,null,0,0,null,null,null,null,0,0,0]
[null,null,null,null,null,null,null,null,0,null,null,null,0,0,null,null,null,null,0,0,0]
[null,null,null,null,null,null,null,null,0,null,null,null,0,0,null,null,null,null,0,0,0]
[null,null,null,null,null,null,null,null,0,null,null,null,0,0,null,null,null,null,0,0,0]
[null,null,null,null,null,null,null,null,0,null,null,null,0,0,null,null,null,null,0,0,0]
[null,null,null,null,null,null,null,null,0,null,null,null,0,0,null,null,null,null,0,0,0]
[null,null,null,null,null,null,null,null,0,null,null,null,0,0,null,null,null,null,0,0,0]
[null,null,null,null,null,null,null,null,0,null,null,null,0,0,null,null,null,null,0,0,0]
[null,null,null,null,null,null,null,null,0,null,null,null,0,0,null,null,null,null,0,0,0]
[null,null,null,null,null,null,null,null,0,null,null,null,0,0,null,null,null,null,0,0,0]
[null,null,null,null,null,null,null,null,0,null,null,null,0,0,null,null,null,null,0,0,0]
[null,null,null,null,null,null,null,null,0,null,null,null,0,0,null,null,null,null,0,0,0]
[null,null,null,null,null,null,null,null,0,null,null,null,0,0,null,null,null,null,0,0,0]
[null,null,null,null,null,null,null,null,0,null,null,null,0,0,null,null,null,null,0,0,0]
[null,null,null,null,null,null,null,null,0,null,null,null,0,0,null,null,null,null,0,0,0]
[null,null,null,null,null,null,null,null,0,null,null,null,0,0,null,null,null,null,0,0,0]
[null,null,null,null,null,null,null,null,0,null,null,null,0,0,null,null,null,null,0,0,0]
[null,null,null,null,null,null,null,null,0,null,null,null,0,0,null,null,null,null,0,0,0]
[null,null,null,null,null,null,null,null,0,null,null,null,0,0,null,null,null,null,0,0,0]
[null,null,null,null,null,null,null,null,0,null,null,null,0,0,null,null,null,null,0,0,0]
[null,null,null,null,null,null,null,null,0,null,null,null,0,0,null,null,null,null,0,0,0]
[null,null,null,null,null,null,null,null,0,null,null,null,0,0,null,null,null,null,0,0,0]
[null,null,null,null,null,null,null,null,0,null,null,null,0,0,null,null,null,null,0,0,0]
[null,null,null,null,null,null,null,null,0,null,null,null,0,0,null,null,null,null,0,0,0]
[null,null,null,null,null,null,null,null,0,null,null,null,0,0,null,null,null,null,0,0,0]
[null,null,null,null,null,null,null,null,0,null,null,null,0,0,null,null,null,null,0,0,0]
[null,null,null,null,null,null,null,null,0,null,null,null,0,0,null,null,null,null,0,0,0]
[null,null,null,null,null,null,null,null,0,null,null,null,0,0,null,null,null,null,0,0,0]
[null,null,null,null,null,null,null,null,0,null,null,null,0,0,null,null,null,null,0,0,0]
[null,null,null,null,null,null,null,null,0,null,null,null,0,0,null,null,null,null,0,0,0]
[null,null,null,null,null,null,null,null,0,null,null,null,0,0,null,null,null,null,0,0,0]
[null,null,null,null,null,null,null,null,0,null,null,null,0,0,null,null,null,null,0,0,0]
[null,null,null,null,null,null,null,null,0,null,null,null,0,0,null,null,null,null,0,0,0]
[null,null,null,null,null,null,null,null,0,null,null,null,0,0,null,null,null,null,0,0,0]
[null,null,null,null,null,null,null,null,0,null,null,null,0,0,null,null,null,null,0,0,0]
[null,null,null,null,null,null,null,null,0,null,null,null,0,0,null,null,null,null,0,0,0]
[null,null,null,null,null,null,null,null,0,null,null,null,0,0,null,null,null,null,0,0,0]
[null,null,null,null,null,null,null,null,0,null,null,null,0,0,null,null,null,null,0,0,0]
[null,null,null,null,null,null,null,null,0,null,null,null,0,0,null,null,null,null,0,0,0]
[null,null,null,null,null,null,null,null,0,null,null,null,0,0,null,null,null,null,0,0,0]
[null,null,null,null,null,null,null,null,0,null,null,null,0,0,null,null,null,null,0,0,0]
[null,null,null,null,null,null,null,null,0,null,null,null,0,0,null,null,null,null,0,0,0]
[null,null,null,null,null,null,null,null,0,null,null,null,0,0,null,null,null,null,0,0,0]
[null,null,null,null,null,null,null,null,0,null,null,null,0,0,null,null,null,null,0,0,0]
[null,null,null,null,null,null,null,null,0,null,null,null,0,0,null,null,null,null,0,0,0]
[null,null,null,null,null,null,null,null,0,null,null,null,0,0,null,null,null,null,0,0,0]
[null,null,null,null,null,null,null,null,0,null,null,null,0,0,null,null,null,null,0,0,0]
[null,null,null,null,null,null,null,null,0,null,null,null,{"$f":"SUM(I204:L204)","v":0},0,null,null,null,null,{"$f":"SUM(N204:R204)","v":0},{"$f":"I204+N204","v":0},{"$f":"M204+S204","v":0}]
[null,null,null,null,null,null,null,null,0,null,null,null,0,0,null,null,null,null,0,0,0]
[null,null,null,null,null,null,null,null,0,null,null,null,0,0,null,null,null,null,0,0,0]
[null,null,null,null,null,null,null,null,0,null,null,null,0,0,null,null,null,null,0,0,0]
[null,null,null,null,null,null,null,null,0,null,null,null,0,0,null,null,null,null,0,0,0]
[null,null,null,null,null,null,null,null,0,null,null,null,0,0,null,null,null,null,0,0,0]
[null,null,null,null,null,null,null,null,0,null,null,null,0,0,null,null,null,null,0,0,0]
[null,null,null,null,null,null,null,null,0,null,null,null,0,0,null,null,null,null,0,0,0]
[null,null,null,null,null,null,null,null,0,null,null,null,0,0,null,null,null,null,0,0,0]
[null,null,null,null,null,null,null,null,0,null,null,null,0,0,null,null,null,null,0,0,0]
[null,null,null,null,null,null,null,null,0,null,null,null,0,0,null,null,null,null,0,0,0]
[null,null,null,null,null,null,null,null,0,null,null,null,0,0,null,null,null,null,0,0,0]
[null,null,null,null,null,null,null,null,0,null,null,null,0,0,null,null,null,null,0,0,0]
[null,null,null,null,null,null,null,null,0,null,null,null,0,0,null,null,null,null,0,0,0]
[null,null,null,null,null,null,null,null,0,null,null,null,0,0,null,null,null,null,0,0,0]
[null,null,null,null,null,null,null,null,0,null,null,null,0,0,null,null,null,null,0,0,0]
[null,null,null,null,null,null,null,null,0,null,null,null,0,0,null,null,null,null,0,0,0]
[null,null,null,null,null,null,null,null,0,null,null,null,0,0,null,null,null,null,0,0,0]
[null,null,null,null,null,null,null,null,0,null,null,null,0,0,null,null,null,null,0,0,0]
[null,null,null,null,null,null,null,null,0,null,null,null,0,0,null,null,null,null,0,0,0]
[null,null,null,null,null,null,null,null,0,null,null,null,0,0,null,null,null,null,0,0,0]
[null,null,null,null,null,null,null,null,0,null,null,null,0,0,null,null,null,null,0,0,0]
[null,null,null,null,null,null,null,null,0,null,null,null,0,0,null,null,null,null,0,0,0]
[null,null,null,null,null,null,null,null,0,null,null,null,0,0,null,null,null,null,0,0,0]
[null,null,null,null,null,null,null,null,0,null,null,null,0,0,null,null,null,null,0,0,0]
[null,null,null,null,null,null,null,null,0,null,null,null,0,0,null,null,null,null,0,0,0]
[null,null,null,null,null,null,null,null,0,null,null,null,0,0,null,null,null,null,0,0,0]
[null,null,null,null,null,null,null,null,0,null,null,null,0,0,null,null,null,null,0,0,0]
[null,null,null,null,null,null,null,null,0,null,null,null,0,0,null,null,null,null,0,0,0]
[null,null,null,null,null,null,null,null,0,null,null,null,0,0,null,null,null,null,0,0,0]
[null,null,null,null,null,null,null,null,0,null,null,null,0,0,null,null,null,null,0,0,0]
[null,null,null,null,null,null,null,null,0,null,null,null,0,0,null,null,null,null,0,0,0]
[null,null,null,null,null,null,null,null,0,null,null,null,0,0,null,null,null,null,0,0,0]
[null,null,null,null,null,null,null,null,0,null,null,null,0,0,null,null,null,null,0,0,0]
[null,null,null,null,null,null,null,null,0,null,null,null,0,0,null,null,null,null,0,0,0]
[null,null,null,null,null,null,null,null,0,null,null,null,0,0,null,null,null,null,0,0,0]
[null,null,null,null,null,null,null,null,0,null,null,null,0,0,null,null,null,null,0,0,0]
[null,null,null,null,null,null,null,null,0,null,null,null,0,0,null,null,null,null,0,0,0]
[null,null,null,null,null,null,null,null,0,null,null,null,0,0,null,null,null,null,0,0,0]
[null,null,null,null,null,null,null,null,0,null,null,null,0,0,null,null,null,null,0,0,0]
[null,null,null,null,null,null,null,null,0,null,null,null,0,0,null,null,null,null,0,0,0]
[null,null,null,null,null,null,null,null,0,null,null,null,0,0,null,null,null,null,0,0,0]
[null,null,null,null,null,null,null,null,0,null,null,null,0,0,null,null,null,null,0,0,0]
[null,null,null,null,null,null,null,null,0,null,null,null,0,0,null,null,null,null,0,0,0]
[null,null,null,null,null,null,null,null,0,null,null,null,0,0,null,null,null,null,0,0,0]
[null,null,null,null,null,null,null,null,0,null,null,null,0,0,null,null,null,null,0,0,0]
[null,null,null,null,null,null,null,null,0,null,null,null,0,0,null,null,null,null,0,0,0]
[null,null,null,null,null,null,null,null,0,null,null,null,0,0,null,null,null,null,0,0,0]
[null,null,null,null,null,null,null,null,0,null,null,null,0,0,null,null,null,null,0,0,0]
[null,null,null,null,null,null,null,null,0,null,null,null,0,0,null,null,null,null,0,0,0]
[null,null,null,null,null,null,null,null,0,null,null,null,0,0,null,null,null,null,0,0,0]
[null,null,null,null,null,null,null,null,0,null,null,null,0,0,null,null,null,null,0,0,0]
[null,null,null,null,null,null,null,null,0,null,null,null,0,0,null,null,null,null,0,0,0]
[null,null,null,null,null,null,null,null,0,null,null,null,0,0,null,null,null,null,0,0,0]
[null,null,null,null,null,null,null,null,0,null,null,null,0,0,null,null,null,null,0,0,0]
[null,null,null,null,null,null,null,null,0,null,null,null,0,0,null,null,null,null,0,0,0]
[null,null,null,null,null,null,null,null,0,null,null,null,0,0,null,null,null,null,0,0,0]
[null,null,null,null,null,null,null,null,0,null,null,null,0,0,null,null,null,null,0,0,0]
[null,null,null,null,null,null,null,null,0,null,null,null,0,0,null,null,null,null,0,0,0]
[null,null,null,null,null,null,null,null,0,null,null,null,0,0,null,null,null,null,0,0,0]
[null,null,null,null,null,null,null,null,0,null,null,null,0,0,null,null,null,null,0,0,0]
[null,null,null,null,null,null,null,null,0,null,null,null,0,0,null,null,null,null,0,0,0]
[null,null,null,null,null,null,null,null,0,null,null,null,0,0,null,null,null,null,0,0,0]
[null,null,null,null,null,null,null,null,0,null,null,null,0,0,null,null,null,null,0,0,0]
[null,null,null,null,null,null,null,null,0,null,null,null,{"$f":"SUM(I268:L268)","v":0},0,null,null,null,null,{"$f":"SUM(N268:R268)","v":0},{"$f":"I268+N268","v":0},{"$f":"M268+S268","v":0}]
[null,null,null,null,null,null,null,null,0,null,null,null,0,0,null,null,null,null,0,0,0]
[null,null,null,null,null,null,null,null,0,null,null,null,0,0,null,null,null,null,0,0,0]
[null,null,null,null,null,null,null,null,0,null,null,null,0,0,null,null,null,null,0,0,0]
[null,null,null,null,null,null,null,null,0,null,null,null,0,0,null,null,null,null,0,0,0]
[null,null,null,null,null,null,null,null,0,null,null,null,0,0,null,null,null,null,0,0,0]
[null,null,null,null,null,null,null,null,0,null,null,null,0,0,null,null,null,null,0,0,0]
[null,null,null,null,null,null,null,null,0,null,null,null,0,0,null,null,null,null,0,0,0]
[null,null,null,null,null,null,null,null,0,null,null,null,0,0,null,null,null,null,0,0,0]
[null,null,null,null,null,null,null,null,0,null,null,null,0,0,null,null,null,null,0,0,0]
[null,null,null,null,null,null,null,null,0,null,null,null,0,0,null,null,null,null,0,0,0]
[null,null,null,null,null,null,null,null,0,null,null,null,0,0,null,null,null,null,0,0,0]
[null,null,null,null,null,null,null,null,0,null,null,null,0,0,null,null,null,null,0,0,0]
[null,null,null,null,null,null,null,null,0,null,null,null,0,0,null,null,null,null,0,0,0]
[null,null,null,null,null,null,null,null,0,null,null,null,0,0,null,null,null,null,0,0,0]
[null,null,null,null,null,null,null,null,0,null,null,null,0,0,null,null,null,null,0,0,0]
[null,null,null,null,null,null,null,null,0,null,null,null,0,0,null,null,null,null,0,0,0]
[null,null,null,null,null,null,null,null,0,null,null,null,0,0,null,null,null,null,0,0,0]
[null,null,null,null,null,null,null,null,0,null,null,null,0,0,null,null,null,null,0,0,0]
[null,null,null,null,null,null,null,null,0,null,null,null,0,0,null,null,null,null,0,0,0]
[null,null,null,null,null,null,null,null,0,null,null,null,0,0,null,null,null,null,0,0,0]
[null,null,null,null,null,null,null,null,0,null,null,null,0,0,null,null,null,null,0,0,0]
[null,null,null,null,null,null,null,null,0,null,null,null,0,0,null,null,null,null,0,0,0]
[null,null,null,null,null,null,null,null,0,null,null,null,0,0,null,null,null,null,0,0,0]
[null,null,null,null,null,null,null,null,0,null,null,null,0,0,null,null,null,null,0,0,0]
[null,null,null,null,null,null,null,null,0,null,null,null,0,0,null,null,null,null,0,0,0]
[null,null,null,null,null,null,null,null,0,null,null,null,0,0,null,null,null,null,0,0,0]
[null,null,null,null,null,null,null,null,0,null,null,null,0,0,null,null,null,null,0,0,0]
[null,null,null,null,null,null,null,null,0,null,null,null,0,0,null,null,null,null,0,0,0]
[null,null,null,null,null,null,null,null,0,null,null,null,0,0,null,null,null,null,0,0,0]
[null,null,null,null,null,null,null,null,0,null,null,null,0,0,null,null,null,null,0,0,0]
[null,null,null,null,null,null,null,null,0,null,null,null,0,0,null,null,null,null,0,0,0]
[null,null,null,null,null,null,null,null,0,null,null,null,0,0,null,null,null,null,0,0,0]
[null,null,null,null,null,null,null,null,0,null,null,null,0,0,null,null,null,null,0,0,0]
[null,null,null,null,null,null,null,null,0,null,null,null,0,0,null,null,null,null,0,0,0]
[null,null,null,null,null,null,null,null,0,null,null,null,0,0,null,null,null,null,0,0,0]
[null,null,null,null,null,null,null,null,0,null,null,null,0,0,null,null,null,null,0,0,0]
[null,null,null,null,null,null,null,null,0,null,null,null,0,0,null,null,null,null,0,0,0]
[null,null,null,null,null,null,null,null,0,null,null,null,0,0,null,null,null,null,0,0,0]
[null,null,null,null,null,null,null,null,0,null,null,null,0,0,null,null,null,null,0,0,0]
[null,null,null,null,null,null,null,null,0,null,null,null,0,0,null,null,null,null,0,0,0]
[null,null,null,null,null,null,null,null,0,null,null,null,0,0,null,null,null,null,0,0,0]
[null,null,null,null,null,null,null,null,0,null,null,null,0,0,null,null,null,null,0,0,0]
[null,null,null,null,null,null,null,null,0,null,null,null,0,0,null,null,null,null,0,0,0]
[null,null,null,null,null,null,null,null,0,null,null,null,0,0,null,null,null,null,0,0,0]
[null,null,null,null,null,null,null,null,0,null,null,null,0,0,null,null,null,null,0,0,0]
[null,null,null,null,null,null,null,null,0,null,null,null,0,0,null,null,null,null,0,0,0]
[null,null,null,null,null,null,null,null,0,null,null,null,0,0,null,null,null,null,0,0,0]
[null,null,null,null,null,null,null,null,0,null,null,null,0,0,null,null,null,null,0,0,0]
[null,null,null,null,null,null,null,null,0,null,null,null,0,0,null,null,null,null,0,0,0]
[null,null,null,null,null,null,null,null,0,null,null,null,0,0,null,null,null,null,0,0,0]
[null,null,null,null,null,null,null,null,0,null,null,null,0,0,null,null,null,null,0,0,0]
[null,null,null,null,null,null,null,null,0,null,null,null,0,0,null,null,null,null,0,0,0]
[null,null,null,null,null,null,null,null,0,null,null,null,0,0,null,null,null,null,0,0,0]
[null,null,null,null,null,null,null,null,0,null,null,null,0,0,null,null,null,null,0,0,0]
[null,null,null,null,null,null,null,null,0,null,null,null,0,0,null,null,null,null,0,0,0]
[null,null,null,null,null,null,null,null,0,null,null,null,0,0,null,null,null,null,0,0,0]
[null,null,null,null,null,null,null,null,0,null,null,null,0,0,null,null,null,null,0,0,0]
[null,null,null,null,null,null,null,null,0,null,null,null,0,0,null,null,null,null,0,0,0]
[null,null,null,null,null,null,null,null,0,null,null,null,0,0,null,null,null,null,0,0,0]
[null,null,null,null,null,null,null,null,0,null,null,null,0,0,null,null,null,null,0,0,0]
[null,null,null,null,null,null,null,null,0,null,null,null,0,0,null,null,null,null,0,0,0]
[null,null,null,null,null,null,null,null,0,null,null,null,0,0,null,null,null,null,0,0,0]
[null,null,null,null,null,null,null,null,0,null,null,null,0,0,null,null,null,null,0,0,0]
[null,null,null,null,null,null,null,null,0,null,null,null,{"$f":"SUM(I332:L332)","v":0},0,null,null,null,null,{"$f":"SUM(N332:R332)","v":0},{"$f":"I332+N332","v":0},{"$f":"M332+S332","v":0}]
[null,null,null,null,null,null,null,null,0,null,null,null,0,0,null,null,null,null,0,0,0]
[null,null,null,null,null,null,null,null,0,null,null,null,0,0,null,null,null,null,0,0,0]
[null,null,null,null,null,null,null,null,0,null,null,null,0,0,null,null,null,null,0,0,0]
[null,null,null,null,null,null,null,null,0,null,null,null,0,0,null,null,null,null,0,0,0]
[null,null,null,null,null,null,null,null,0,null,null,null,0,0,null,null,null,null,0,0,0]
[null,null,null,null,null,null,null,null,0,null,null,null,0,0,null,null,null,null,0,0,0]
[null,null,null,null,null,null,null,null,0,null,null,null,0,0,null,null,null,null,0,0,0]
[null,null,null,null,null,null,null,null,0,null,null,null,0,0,null,null,null,null,0,0,0]
[null,null,null,null,null,null,null,null,0,null,null,null,0,0,null,null,null,null,0,0,0]
[null,null,null,null,null,null,null,null,0,null,null,null,0,0,null,null,null,null,0,0,0]
[null,null,null,null,null,null,null,null,0,null,null,null,0,0,null,null,null,null,0,0,0]
[null,null,null,null,null,null,null,null,0,null,null,null,0,0,null,null,null,null,0,0,0]
[null,null,null,null,null,null,null,null,0,null,null,null,0,0,null,null,null,null,0,0,0]
[null,null,null,null,null,null,null,null,0,null,null,null,0,0,null,null,null,null,0,0,0]
[null,null,null,null,null,null,null,null,0,null,null,null,0,0,null,null,null,null,0,0,0]
[null,null,null,null,null,null,null,null,0,null,null,null,0,0,null,null,null,null,0,0,0]
[null,null,null,null,null,null,null,null,0,null,null,null,0,0,null,null,null,null,0,0,0]
[null,null,null,null,null,null,null,null,0,null,null,null,0,0,null,null,null,null,0,0,0]
[null,null,null,null,null,null,null,null,0,null,null,null,0,0,null,null,null,null,0,0,0]
[null,null,null,null,null,null,null,null,0,null,null,null,0,0,null,null,null,null,0,0,0]
[null,null,null,null,null,null,null,null,0,null,null,null,0,0,null,null,null,null,0,0,0]
[null,null,null,null,null,null,null,null,0,null,null,null,0,0,null,null,null,null,0,0,0]
[null,null,null,null,null,null,null,null,0,null,null,null,0,0,null,null,null,null,0,0,0]
[null,null,null,null,null,null,null,null,0,null,null,null,0,0,null,null,null,null,0,0,0]
[null,null,null,null,null,null,null,null,0,null,null,null,0,0,null,null,null,null,0,0,0]
[null,null,null,null,null,null,null,null,0,null,null,null,0,0,null,null,null,null,0,0,0]
[null,null,null,null,null,null,null,null,0,null,null,null,0,0,null,null,null,null,0,0,0]
[null,null,null,null,null,null,null,null,0,null,null,null,0,0,null,null,null,null,0,0,0]
[null,null,null,null,null,null,null,null,0,null,null,null,0,0,null,null,null,null,0,0,0]
[null,null,null,null,null,null,null,null,0,null,null,null,0,0,null,null,null,null,0,0,0]
[null,null,null,null,null,null,null,null,0,null,null,null,0,0,null,null,null,null,0,0,0]
[null,null,null,null,null,null,null,null,0,null,null,null,0,0,null,null,null,null,0,0,0]
[null,null,null,null,null,null,null,null,0,null,null,null,0,0,null,null,null,null,0,0,0]
[null,null,null,null,null,null,null,null,0,null,null,null,0,0,null,null,null,null,0,0,0]
[null,null,null,null,null,null,null,null,0,null,null,null,0,0,null,null,null,null,0,0,0]
[null,null,null,null,null,null,null,null,0,null,null,null,0,0,null,null,null,null,0,0,0]
[null,null,null,null,null,null,null,null,0,null,null,null,0,0,null,null,null,null,0,0,0]
[null,null,null,null,null,null,null,null,0,null,null,null,0,0,null,null,null,null,0,0,0]
[null,null,null,null,null,null,null,null,0,null,null,null,0,0,null,null,null,null,0,0,0]
[null,null,null,null,null,null,null,null,0,null,null,null,0,0,null,null,null,null,0,0,0]
[null,null,null,null,null,null,null,null,0,null,null,null,0,0,null,null,null,null,0,0,0]
[null,null,null,null,null,null,null,null,0,null,null,null,0,0,null,null,null,null,0,0,0]
[null,null,null,null,null,null,null,null,0,null,null,null,0,0,null,null,null,null,0,0,0]
[null,null,null,null,null,null,null,null,0,null,null,null,0,0,null,null,null,null,0,0,0]
[null,null,null,null,null,null,null,null,0,null,null,null,0,0,null,null,null,null,0,0,0]
[null,null,null,null,null,null,null,null,0,null,null,null,0,0,null,null,null,null,0,0,0]
[null,null,null,null,null,null,null,null,0,null,null,null,0,0,null,null,null,null,0,0,0]
[null,null,null,null,null,null,null,null,0,null,null,null,0,0,null,null,null,null,0,0,0]
[null,null,null,null,null,null,null,null,0,null,null,null,0,0,null,null,null,null,0,0,0]
[null,null,null,null,null,null,null,null,0,null,null,null,0,0,null,null,null,null,0,0,0]
[null,null,null,null,null,null,null,null,0,null,null,null,0,0,null,null,null,null,0,0,0]
[null,null,null,null,null,null,null,null,0,null,null,null,0,0,null,null,null,null,0,0,0]
[null,null,null,null,null,null,null,null,0,null,null,null,0,0,null,null,null,null,0,0,0]
[null,null,null,null,null,null,null,null,0,null,null,null,0,0,null,null,null,null,0,0,0]
[null,null,null,null,null,null,null,null,0,null,null,null,0,0,null,null,null,null,0,0,0]
[null,null,null,null,null,null,null,null,0,null,null,null,0,0,null,null,null,null,0,0,0]
[null,null,null,null,null,null,null,null,0,null,null,null,0,0,null,null,null,null,0,0,0]
[null,null,null,null,null,null,null,null,0,null,null,null,0,0,null,null,null,null,0,0,0]
[null,null,null,null,null,null,null,null,0,null,null,null,0,0,null,null,null,null,0,0,0]
[null,null,null,null,null,null,null,null,0,null,null,null,0,0,null,null,null,null,0,0,0]
[null,null,null,null,null,null,null,null,0,null,null,null,0,0,null,null,null,null,0,0,0]
[null,null,null,null,null,null,null,null,0,null,null,null,0,0,null,null,null,null,0,0,0]
[null,null,null,null,null,null,null,null,0,null,null,null,0,0,null,null,null,null,0,0,0]
[null,null,null,null,null,null,null,null,0,null,null,null,{"$f":"SUM(I396:L396)","v":0},0,null,null,null,null,{"$f":"SUM(N396:R396)","v":0},{"$f":"I396+N396","v":0},{"$f":"M396+S396","v":0}]
[null,null,null,null,null,null,null,null,0,null,null,null,0,0,null,null,null,null,0,0,0]
[null,null,null,null,null,null,null,null,0,null,null,null,0,0,null,null,null,null,0,0,0]
[null,null,null,null,null,null,null,null,0,null,null,null,0,0,null,null,null,null,0,0,0]
[null,null,null,null,null,null,null,null,0,null,null,null,0,0,null,null,null,null,0,0,0]
[null,null,null,null,null,null,null,null,0,null,null,null,0,0,null,null,null,null,0,0,0]
[null,null,null,null,null,null,null,null,0,null,null,null,0,0,null,null,null,null,0,0,0]
[null,null,null,null,null,null,null,null,0,null,null,null,0,0,null,null,null,null,0,0,0]
[null,null,null,null,null,null,null,null,0,null,null,null,0,0,null,null,null,null,0,0,0]
[null,null,null,null,null,null,null,null,0,null,null,null,0,0,null,null,null,null,0,0,0]
[null,null,null,null,null,null,null,null,0,null,null,null,0,0,null,null,null,null,0,0,0]
[null,null,null,null,null,null,null,null,0,null,null,null,0,0,null,null,null,null,0,0,0]
[null,null,null,null,null,null,null,null,0,null,null,null,0,0,null,null,null,null,0,0,0]
[null,null,null,null,null,null,null,null,0,null,null,null,0,0,null,null,null,null,0,0,0]
[null,null,null,null,null,null,null,null,0,null,null,null,0,0,null,null,null,null,0,0,0]
[null,null,null,null,null,null,null,null,0,null,null,null,0,0,null,null,null,null,0,0,0]
[null,null,null,null,null,null,null,null,0,null,null,null,0,0,null,null,null,null,0,0,0]
[null,null,null,null,null,null,null,null,0,null,null,null,0,0,null,null,null,null,0,0,0]
[null,null,null,null,null,null,null,null,0,null,null,null,0,0,null,null,null,null,0,0,0]
[null,null,null,null,null,null,null,null,0,null,null,null,0,0,null,null,null,null,0,0,0]
[null,null,null,null,null,null,null,null,0,null,null,null,0,0,null,null,null,null,0,0,0]
[null,null,null,null,null,null,null,null,0,null,null,null,0,0,null,null,null,null,0,0,0]
[null,null,null,null,null,null,null,null,0,null,null,null,0,0,null,null,null,null,0,0,0]
[null,null,null,null,null,null,null,null,0,null,null,null,0,0,null,null,null,null,0,0,0]
[null,null,null,null,null,null,null,null,0,null,null,null,0,0,null,null,null,null,0,0,0]
[null,null,null,null,null,null,null,null,0,null,null,null,0,0,null,null,null,null,0,0,0]
[null,null,null,null,null,null,null,null,0,null,null,null,0,0,null,null,null,null,0,0,0]
[null,null,null,null,null,null,null,null,0,null,null,null,0,0,null,null,null,null,0,0,0]
[null,null,null,null,null,null,null,null,0,null,null,null,0,0,null,null,null,null,0,0,0]
[null,null,null,null,null,null,null,null,0,null,null,null,0,0,null,null,null,null,0,0,0]
[null,null,null,null,null,null,null,null,0,null,null,null,0,0,null,null,null,null,0,0,0]
[null,null,null,null,null,null,null,null,0,null,null,null,0,0,null,null,null,null,0,0,0]
[null,null,null,null,null,null,null,null,0,null,null,null,0,0,null,null,null,null,0,0,0]
[null,null,null,null,null,null,null,null,0,null,null,null,0,0,null,null,null,null,0,0,0]
[null,null,null,null,null,null,null,null,0,null,null,null,0,0,null,null,null,null,0,0,0]
[null,null,null,null,null,null,null,null,0,null,null,null,0,0,null,null,null,null,0,0,0]
[null,null,null,null,null,null,null,null,0,null,null,null,0,0,null,null,null,null,0,0,0]
[null,null,null,null,null,null,null,null,0,null,null,null,0,0,null,null,null,null,0,0,0]
[null,null,null,null,null,null,null,null,0,null,null,null,0,0,null,null,null,null,0,0,0]
[null,null,null,null,null,null,null,null,0,null,null,null,0,0,null,null,null,null,0,0,0]
[null,null,null,null,null,null,null,null,0,null,null,null,0,0,null,null,null,null,0,0,0]
[null,null,null,null,null,null,null,null,0,null,null,null,0,0,null,null,null,null,0,0,0]
[null,null,null,null,null,null,null,null,0,null,null,null,0,0,null,null,null,null,0,0,0]
[null,null,null,null,null,null,null,null,0,null,null,null,0,0,null,null,null,null,0,0,0]
[null,null,null,null,null,null,null,null,0,null,null,null,0,0,null,null,null,null,0,0,0]
[null,null,null,null,null,null,null,null,0,null,null,null,0,0,null,null,null,null,0,0,0]
[null,null,null,null,null,null,null,null,0,null,null,null,0,0,null,null,null,null,0,0,0]
[null,null,null,null,null,null,null,null,0,null,null,null,0,0,null,null,null,null,0,0,0]
[null,null,null,null,null,null,null,null,0,null,null,null,0,0,null,null,null,null,0,0,0]
[null,null,null,null,null,null,null,null,0,null,null,null,0,0,null,null,null,null,0,0,0]
[null,null,null,null,null,null,null,null,0,null,null,null,0,0,null,null,null,null,0,0,0]
[null,null,null,null,null,null,null,null,0,null,null,null,0,0,null,null,null,null,0,0,0]
[null,null,null,null,null,null,null,null,0,null,null,null,0,0,null,null,null,null,0,0,0]
[null,null,null,null,null,null,null,null,0,null,null,null,0,0,null,null,null,null,0,0,0]
[null,null,null,null,null,null,null,null,0,null,null,null,0,0,null,null,null,null,0,0,0]
[null,null,null,null,null,null,null,null,0,null,null,null,0,0,null,null,null,null,0,0,0]
[null,null,null,null,null,null,null,null,0,null,null,null,0,0,null,null,null,null,0,0,0]
[null,null,null,null,null,null,null,null,0,null,null,null,0,0,null,null,null,null,0,0,0]
[null,null,null,null,null,null,null,null,0,null,null,null,0,0,null,null,null,null,0,0,0]
[null,null,null,null,null,null,null,null,0,null,null,null,0,0,null,null,null,null,0,0,0]
[null,null,null,null,null,null,null,null,0,null,null,null,0,0,null,null,null,null,0,0,0]
[null,null,null,null,null,null,null,null,0,null,null,null,0,0,null,null,null,null,0,0,0]
[null,null,null,null,null,null,null,null,0,null,null,null,0,0,null,null,null,null,0,0,0]
[null,null,null,null,null,null,null,null,0,null,null,null,0,0,null,null,null,null,0,0,0]
[null,null,null,null,null,null,null,null,0,null,null,null,{"$f":"SUM(I460:L460)","v":0},0,null,null,null,null,{"$f":"SUM(N460:R460)","v":0},{"$f":"I460+N460","v":0},{"$f":"M460+S460","v":0}]
[null,null,null,null,null,null,null,null,0,null,null,null,0,0,null,null,null,null,0,0,0]
[null,null,null,null,null,null,null,null,0,null,null,null,0,0,null,null,null,null,0,0,0]
[null,null,null,null,null,null,null,null,0,null,null,null,0,0,null,null,null,null,0,0,0]
[null,null,null,null,null,null,null,null,0,null,null,null,0,0,null,null,null,null,0,0,0]
[null,null,null,null,null,null,null,null,0,null,null,null,0,0,null,null,null,null,0,0,0]
[null,null,null,null,null,null,null,null,0,null,null,null,0,0,null,null,null,null,0,0,0]
[null,null,null,null,null,null,null,null,0,null,null,null,0,0,null,null,null,null,0,0,0]
[null,null,null,null,null,null,null,null,0,null,null,null,0,0,null,null,null,null,0,0,0]
[null,null,null,null,null,null,null,null,0,null,null,null,0,0,null,null,null,null,0,0,0]
[null,null,null,null,null,null,null,null,0,null,null,null,0,0,null,null,null,null,0,0,0]
[null,null,null,null,null,null,null,null,0,null,null,null,0,0,null,null,null,null,0,0,0]
[null,null,null,null,null,null,null,null,0,null,null,null,0,0,null,null,null,null,0,0,0]
[null,null,null,null,null,null,null,null,0,null,null,null,0,0,null,null,null,null,0,0,0]
[null,null,null,null,null,null,null,null,0,null,null,null,0,0,null,null,null,null,0,0,0]
[null,null,null,null,null,null,null,null,0,null,null,null,0,0,null,null,null,null,0,0,0]
[null,null,null,null,null,null,null,null,0,null,null,null,0,0,null,null,null,null,0,0,0]
[null,null,null,null,null,null,null,null,0,null,null,null,0,0,null,null,null,null,0,0,0]
[null,null,null,null,null,null,null,null,0,null,null,null,0,0,null,null,null,null,0,0,0]
[null,null,null,null,null,null,null,null,0,null,null,null,0,0,null,null,null,null,0,0,0]
[null,null,null,null,null,null,null,null,0,null,null,null,0,0,null,null,null,null,0,0,0]
[null,null,null,null,null,null,null,null,0,null,null,null,0,0,null,null,null,null,0,0,0]
[null,null,null,null,null,null,null,null,0,null,null,null,0,0,null,null,null,null,0,0,0]
[null,null,null,null,null,null,null,null,0,null,null,null,0,0,null,null,null,null,0,0,0]
[null,null,null,null,null,null,null,null,0,null,null,null,0,0,null,null,null,null,0,0,0]
[null,null,null,null,null,null,null,null,0,null,null,null,0,0,null,null,null,null,0,0,0]
[null,null,null,null,null,null,null,null,0,null,null,null,0,0,null,null,null,null,0,0,0]
[null,null,null,null,null,null,null,null,0,null,null,null,0,0,null,null,null,null,0,0,0]
[null,null,null,null,null,null,null,null,0,null,null,null,0,0,null,null,null,null,0,0,0]
[null,null,null,null,null,null,null,null,0,null,null,null,0,0,null,null,null,null,0,0,0]
[null,null,null,null,null,null,null,null,0,null,null,null,0,0,null,null,null,null,0,0,0]
[null,null,null,null,null,null,null,null,0,null,null,null,0,0,null,null,null,null,0,0,0]
[null,null,null,null,null,null,null,null,0,null,null,null,0,0,null,null,null,null,0,0,0]
[null,null,null,null,null,null,null,null,0,null,null,null,0,0,null,null,null,null,0,0,0]
[null,null,null,null,null,null,null,null,0,null,null,null,0,0,null,null,null,null,0,0,0]
[null,null,null,null,null,null,null,null,0,null,null,null,0,0,null,null,null,null,0,0,0]
[null,null,null,null,null,null,null,null,0,null,null,null,0,0,null,null,null,null,0,0,0]
[null,null,null,null,null,null,null,null,0,null,null,null,0,0,null,null,null,null,0,0,0]
[null,null,null,null,null,null,null,null,0,null,null,null,0,0,null,null,null,null,0,0,0]
[null,null,null,null,null,null,null,null,0,null,null,null,0,0,null,null,null,null,0,0,0]
[null,null,null,null,null,null,null,null,0,null,null,null,0,0,null,null,null,null,0,0,0]
[null,null,null,null,null,null,null,null,0,null,null,null,0,0,null,null,null,null,0,0,0]
[null,null,null,null,null,null,null,null,0,null,null,null,0,0,null,null,null,null,0,0,0]
[null,null,null,null,null,null,null,null,0,null,null,null,0,0,null,null,null,null,0,0,0]
[null,null,null,null,null,null,null,null,0,null,null,null,0,0,null,null,null,null,0,0,0]
[null,null,null,null,null,null,null,null,0,null,null,null,0,0,null,null,null,null,0,0,0]
[null,null,null,null,null,null,null,null,0,null,null,null,0,0,null,null,null,null,0,0,0]
[null,null,null,null,null,null,null,null,0,null,null,null,0,0,null,null,null,null,0,0,0]
[null,null,null,null,null,null,null,null,0,null,null,null,0,0,null,null,null,null,0,0,0]
[null,null,null,null,null,null,null,null,0,null,null,null,0,0,null,null,null,null,0,0,0]
[null,null,null,null,null,null,null,null,0,null,null,null,0,0,null,null,null,null,0,0,0]
[null,null,null,null,null,null,null,null,0,null,null,null,0,0,null,null,null,null,0,0,0]
[null,null,null,null,null,null,null,null,0,null,null,null,0,0,null,null,null,null,0,0,0]
[null,null,null,null,null,null,null,null,0,null,null,null,0,0,null,null,null,null,0,0,0]
[null,null,null,null,null,null,null,null,0,null,null,null,0,0,null,null,null,null,0,0,0]
[null,null,null,null,null,null,null,null,0,null,null,null,0,0,null,null,null,null,0,0,0]
[null,null,null,null,null,null,null,null,0,null,null,null,0,0,null,null,null,null,0,0,0]
[null,null,null,null,null,null,null,null,0,null,null,null,0,0,null,null,null,null,0,0,0]
[null,null,null,null,null,null,null,null,0,null,null,null,0,0,null,null,null,null,0,0,0]
[null,null,null,null,null,null,null,null,0,null,null,null,0,0,null,null,null,null,0,0,0]
[null,null,null,null,null,null,null,null,0,null,null,null,0,0,null,null,null,null,0,0,0]
[null,null,null,null,null,null,null,null,0,null,null,null,0,0,null,null,null,null,0,0,0]
[null,null,null,null,null,null,null,null,0,null,null,null,0,0,null,null,null,null,0,0,0]
[null,null,null,null,null,null,null,null,0,null,null,null,0,0,null,null,null,null,0,0,0]
[null,null,null,null,null,null,null,null,0,null,null,null,{"$f":"SUM(I524:L524)","v":0},0,null,null,null,null,{"$f":"SUM(N524:R524)","v":0},{"$f":"I524+N524","v":0},{"$f":"M524+S524","v":0}]
[null,null,null,null,null,null,null,null,0,null,null,null,0,0,null,null,null,null,0,0,0]
[null,null,null,null,null,null,null,null,0,null,null,null,0,0,null,null,null,null,0,0,0]
[null,null,null,null,null,null,null,null,0,null,null,null,0,0,null,null,null,null,0,0,0]
[null,null,null,null,null,null,null,null,0,null,null,null,0,0,null,null,null,null,0,0,0]
[null,null,null,null,null,null,null,null,0,null,null,null,0,0,null,null,null,null,0,0,0]
[null,null,null,null,null,null,null,null,0,null,null,null,0,0,null,null,null,null,0,0,0]
[null,null,null,null,null,null,null,null,0,null,null,null,0,0,null,null,null,null,0,0,0]
[null,null,null,null,null,null,null,null,0,null,null,null,0,0,null,null,null,null,0,0,0]
[null,null,null,null,null,null,null,null,0,null,null,null,0,0,null,null,null,null,0,0,0]
[null,null,null,null,null,null,null,null,0,null,null,null,0,0,null,null,null,null,0,0,0]
[null,null,null,null,null,null,null,null,0,null,null,null,0,0,null,null,null,null,0,0,0]
[null,null,null,null,null,null,null,null,0,null,null,null,0,0,null,null,null,null,0,0,0]
[null,null,null,null,null,null,null,null,0,null,null,null,0,0,null,null,null,null,0,0,0]
[null,null,null,null,null,null,null,null,0,null,null,null,0,0,null,null,null,null,0,0,0]
[null,null,null,null,null,null,null,null,0,null,null,null,0,0,null,null,null,null,0,0,0]
[null,null,null,null,null,null,null,null,0,null,null,null,0,0,null,null,null,null,0,0,0]
[null,null,null,null,null,null,null,null,0,null,null,null,0,0,null,null,null,null,0,0,0]
[null,null,null,null,null,null,null,null,0,null,null,null,0,0,null,null,null,null,0,0,0]
[null,null,null,null,null,null,null,null,0,null,null,null,0,0,null,null,null,null,0,0,0]
[null,null,null,null,null,null,null,null,0,null,null,null,0,0,null,null,null,null,0,0,0]
[null,null,null,null,null,null,null,null,0,null,null,null,0,0,null,null,null,null,0,0,0]
[null,null,null,null,null,null,null,null,0,null,null,null,0,0,null,null,null,null,0,0,0]
[null,null,null,null,null,null,null,null,0,null,null,null,0,0,null,null,null,null,0,0,0]
[null,null,null,null,null,null,null,null,0,null,null,null,0,0,null,null,null,null,0,0,0]
[null,null,null,null,null,null,null,null,0,null,null,null,0,0,null,null,null,null,0,0,0]
[null,null,null,null,null,null,null,null,0,null,null,null,0,0,null,null,null,null,0,0,0]
[null,null,null,null,null,null,null,null,0,null,null,null,0,0,null,null,null,null,0,0,0]
[null,null,null,null,null,null,null,null,0,null,null,null,0,0,null,null,null,null,0,0,0]
[null,null,null,null,null,null,null,null,0,null,null,null,0,0,null,null,null,null,0,0,0]
[null,null,null,null,null,null,null,null,0,null,null,null,0,0,null,null,null,null,0,0,0]
[null,null,null,null,null,null,null,null,0,null,null,null,0,0,null,null,null,null,0,0,0]
[null,null,null,null,null,null,null,null,0,null,null,null,0,0,null,null,null,null,0,0,0]
[null,null,null,null,null,null,null,null,0,null,null,null,0,0,null,null,null,null,0,0,0]
[null,null,null,null,null,null,null,null,0,null,null,null,0,0,null,null,null,null,0,0,0]
[null,null,null,null,null,null,null,null,0,null,null,null,0,0,null,null,null,null,0,0,0]
[null,null,null,null,null,null,null,null,0,null,null,null,0,0,null,null,null,null,0,0,0]
[null,null,null,null,null,null,null,null,0,null,null,null,0,0,null,null,null,null,0,0,0]
[null,null,null,null,null,null,null,null,0,null,null,null,0,0,null,null,null,null,0,0,0]
[null,null,null,null,null,null,null,null,0,null,null,null,0,0,null,null,null,null,0,0,0]
[null,null,null,null,null,null,null,null,0,null,null,null,0,0,null,null,null,null,0,0,0]
[null,null,null,null,null,null,null,null,0,null,null,null,0,0,null,null,null,null,0,0,0]
[null,null,null,null,null,null,null,null,0,null,null,null,0,0,null,null,null,null,0,0,0]
[null,null,null,null,null,null,null,null,0,null,null,null,0,0,null,null,null,null,0,0,0]
[null,null,null,null,null,null,null,null,0,null,null,null,0,0,null,null,null,null,0,0,0]
[null,null,null,null,null,null,null,null,0,null,null,null,0,0,null,null,null,null,0,0,0]
[null,null,null,null,null,null,null,null,0,null,null,null,0,0,null,null,null,null,0,0,0]
[null,null,null,null,null,null,null,null,0,null,null,null,0,0,null,null,null,null,0,0,0]
[null,null,null,null,null,null,null,null,0,null,null,null,0,0,null,null,null,null,0,0,0]
[null,null,null,null,null,null,null,null,0,null,null,null,0,0,null,null,null,null,0,0,0]
[null,null,null,null,null,null,null,null,0,null,null,null,0,0,null,null,null,null,0,0,0]
[null,null,null,null,null,null,null,null,0,null,null,null,0,0,null,null,null,null,0,0,0]
[null,null,null,null,null,null,null,null,0,null,null,null,0,0,null,null,null,null,0,0,0]
[null,null,null,null,null,null,null,null,0,null,null,null,0,0,null,null,null,null,0,0,0]
[null,null,null,null,null,null,null,null,0,null,null,null,0,0,null,null,null,null,0,0,0]
[null,null,null,null,null,null,null,null,0,null,null,null,0,0,null,null,null,null,0,0,0]
[null,null,null,null,null,null,null,null,0,null,null,null,0,0,null,null,null,null,0,0,0]
[null,null,null,null,null,null,null,null,0,null,null,null,0,0,null,null,null,null,0,0,0]
[null,null,null,null,null,null,null,null,0,null,null,null,0,0,null,null,null,null,0,0,0]
[null,null,null,null,null,null,null,null,0,null,null,null,0,0,null,null,null,null,0,0,0]
[null,null,null,null,null,null,null,null,0,null,null,null,0,0,null,null,null,null,0,0,0]
[null,null,null,null,null,null,null,null,0,null,null,null,0,0,null,null,null,null,0,0,0]
[null,null,null,null,null,null,null,null,0,null,null,null,0,0,null,null,null,null,0,0,0]
[null,null,null,null,null,null,null,null,0,null,null,null,0,0,null,null,null,null,0,0,0]
[null,null,null,null,null,null,null,null,0,null,null,null,{"$f":"SUM(I588:L588)","v":0},0,null,null,null,null,{"$f":"SUM(N588:R588)","v":0},{"$f":"I588+N588","v":0},{"$f":"M588+S588","v":0}]
[null,null,null,null,null,null,null,null,0,null,null,null,0,0,null,null,null,null,0,0,0]
[null,null,null,null,null,null,null,null,0,null,null,null,0,0,null,null,null,null,0,0,0]
[null,null,null,null,null,null,null,null,0,null,null,null,0,0,null,null,null,null,0,0,0]
[null,null,null,null,null,null,null,null,0,null,null,null,0,0,null,null,null,null,0,0,0]
[null,null,null,null,null,null,null,null,0,null,null,null,0,0,null,null,null,null,0,0,0]
[null,null,null,null,null,null,null,null,0,null,null,null,0,0,null,null,null,null,0,0,0]
[null,null,null,null,null,null,null,null,0,null,null,null,0,0,null,null,null,null,0,0,0]
[null,null,null,null,null,null,null,null,0,null,null,null,0,0,null,null,null,null,0,0,0]
[null,null,null,null,null,null,null,null,0,null,null,null,0,0,null,null,null,null,0,0,0]
[null,null,null,null,null,null,null,null,0,null,null,null,0,0,null,null,null,null,0,0,0]
[null,null,null,null,null,null,null,null,0,null,null,null,0,0,null,null,null,null,0,0,0]
[null,null,null,null,null,null,null,null,0,null,null,null,0,0,null,null,null,null,0,0,0]
[null,null,null,null,null,null,null,null,0,null,null,null,0,0,null,null,null,null,0,0,0]
[null,null,null,null,null,null,null,null,0,null,null,null,0,0,null,null,null,null,0,0,0]
[null,null,null,null,null,null,null,null,0,null,null,null,0,0,null,null,null,null,0,0,0]
[null,null,null,null,null,null,null,null,0,null,null,null,0,0,null,null,null,null,0,0,0]
[null,null,null,null,null,null,null,null,0,null,null,null,0,0,null,null,null,null,0,0,0]
[null,null,null,null,null,null,null,null,0,null,null,null,0,0,null,null,null,null,0,0,0]
[null,null,null,null,null,null,null,null,0,null,null,null,0,0,null,null,null,null,0,0,0]
[null,null,null,null,null,null,null,null,0,null,null,null,0,0,null,null,null,null,0,0,0]
[null,null,null,null,null,null,null,null,0,null,null,null,0,0,null,null,null,null,0,0,0]
[null,null,null,null,null,null,null,null,0,null,null,null,0,0,null,null,null,null,0,0,0]
[null,null,null,null,null,null,null,null,0,null,null,null,0,0,null,null,null,null,0,0,0]
[null,null,null,null,null,null,null,null,0,null,null,null,0,0,null,null,null,null,0,0,0]
[null,null,null,null,null,null,null,null,0,null,null,null,0,0,null,null,null,null,0,0,0]
[null,null,null,null,null,null,null,null,0,null,null,null,0,0,null,null,null,null,0,0,0]
[null,null,null,null,null,null,null,null,0,null,null,null,0,0,null,null,null,null,0,0,0]
[null,null,null,null,null,null,null,null,0,null,null,null,0,0,null,null,null,null,0,0,0]
[null,null,null,null,null,null,null,null,0,null,null,null,0,0,null,null,null,null,0,0,0]
[null,null,null,null,null,null,null,null,0,null,null,null,0,0,null,null,null,null,0,0,0]
[null,null,null,null,null,null,null,null,0,null,null,null,0,0,null,null,null,null,0,0,0]
[null,null,null,null,null,null,null,null,0,null,null,null,0,0,null,null,null,null,0,0,0]
[null,null,null,null,null,null,null,null,0,null,null,null,0,0,null,null,null,null,0,0,0]
[null,null,null,null,null,null,null,null,0,null,null,null,0,0,null,null,null,null,0,0,0]
[null,null,null,null,null,null,null,null,0,null,null,null,0,0,null,null,null,null,0,0,0]
[null,null,null,null,null,null,null,null,0,null,null,null,0,0,null,null,null,null,0,0,0]
[null,null,null,null,null,null,null,null,0,null,null,null,0,0,null,null,null,null,0,0,0]
[null,null,null,null,null,null,null,null,0,null,null,null,0,0,null,null,null,null,0,0,0]
[null,null,null,null,null,null,null,null,0,null,null,null,0,0,null,null,null,null,0,0,0]
[null,null,null,null,null,null,null,null,0,null,null,null,0,0,null,null,null,null,0,0,0]
[null,null,null,null,null,null,null,null,0,null,null,null,0,0,null,null,null,null,0,0,0]
[null,null,null,null,null,null,null,null,0,null,null,null,0,0,null,null,null,null,0,0,0]
[null,null,null,null,null,null,null,null,0,null,null,null,0,0,null,null,null,null,0,0,0]
[null,null,null,null,null,null,null,null,0,null,null,null,0,0,null,null,null,null,0,0,0]
[null,null,null,null,null,null,null,null,0,null,null,null,0,0,null,null,null,null,0,0,0]
[null,null,null,null,null,null,null,null,0,null,null,null,0,0,null,null,null,null,0,0,0]
[null,null,null,null,null,null,null,null,0,null,null,null,0,0,null,null,null,null,0,0,0]
[null,null,null,null,null,null,null,null,0,null,null,null,0,0,null,null,null,null,0,0,0]
[null,null,null,null,null,null,null,null,0,null,null,null,0,0,null,null,null,null,0,0,0]
[null,null,null,null,null,null,null,null,0,null,null,null,0,0,null,null,null,null,0,0,0]
[null,null,null,null,null,null,null,null,0,null,null,null,0,0,null,null,null,null,0,0,0]
[null,null,null,null,null,null,null,null,0,null,null,null,0,0,null,null,null,null,0,0,0]
[null,null,null,null,null,null,null,null,0,null,null,null,0,0,null,null,null,null,0,0,0]
[null,null,null,null,null,null,null,null,0,null,null,null,0,0,null,null,null,null,0,0,0]
[null,null,null,null,null,null,null,null,0,null,null,null,0,0,null,null,null,null,0,0,0]
[null,null,null,null,null,null,null,null,0,null,null,null,0,0,null,null,null,null,0,0,0]
[null,null,null,null,null,null,null,null,0,null,null,null,0,0,null,null,null,null,0,0,0]
[null,null,null,null,null,null,null,null,0,null,null,null,0,0,null,null,null,null,0,0,0]
[null,null,null,null,null,null,null,null,0,null,null,null,0,0,null,null,null,null,0,0,0]
[null,null,null,null,null,null,null,null,0,null,null,null,0,0,null,null,null,null,0,0,0]
[null,null,null,null,null,null,null,null,0,null,null,null,0,0,null,null,null,null,0,0,0]
[null,null,null,null,null,null,null,null,0,null,null,null,0,0,null,null,null,null,0,0,0]
[null,null,null,null,null,null,null,null,0,null,null,null,0,0,null,null,null,null,0,0,0]
[null,null,null,null,null,null,null,null,0,null,null,null,{"$f":"SUM(I652:L652)","v":0},0,null,null,null,null,{"$f":"SUM(N652:R652)","v":0},{"$f":"I652+N652","v":0},{"$f":"M652+S652","v":0}]
[null,null,null,null,null,null,null,null,0,null,null,null,0,0,null,null,null,null,0,0,0]
[null,null,null,null,null,null,null,null,0,null,null,null,0,0,null,null,null,null,0,0,0]
[null,null,null,null,null,null,null,null,0,null,null,null,0,0,null,null,null,null,0,0,0]
[null,null,null,null,null,null,null,null,0,null,null,null,0,0,null,null,null,null,0,0,0]
[null,null,null,null,null,null,null,null,0,null,null,null,0,0,null,null,null,null,0,0,0]
[null,null,null,null,null,null,null,null,0,null,null,null,0,0,null,null,null,null,0,0,0]
[null,null,null,null,null,null,null,null,0,null,null,null,0,0,null,null,null,null,0,0,0]
[null,null,null,null,null,null,null,null,0,null,null,null,0,0,null,null,null,null,0,0,0]
[null,null,null,null,null,null,null,null,0,null,null,null,0,0,null,null,null,null,0,0,0]
[null,null,null,null,null,null,null,null,0,null,null,null,0,0,null,null,null,null,0,0,0]
[null,null,null,null,null,null,null,null,0,null,null,null,0,0,null,null,null,null,0,0,0]
[null,null,null,null,null,null,null,null,0,null,null,null,0,0,null,null,null,null,0,0,0]
[null,null,null,null,null,null,null,null,0,null,null,null,0,0,null,null,null,null,0,0,0]
[null,null,null,null,null,null,null,null,0,null,null,null,0,0,null,null,null,null,0,0,0]
[null,null,null,null,null,null,null,null,0,null,null,null,0,0,null,null,null,null,0,0,0]
[null,null,null,null,null,null,null,null,0,null,null,null,0,0,null,null,null,null,0,0,0]
[null,null,null,null,null,null,null,null,0,null,null,null,0,0,null,null,null,null,0,0,0]
[null,null,null,null,null,null,null,null,0,null,null,null,0,0,null,null,null,null,0,0,0]
[null,null,null,null,null,null,null,null,0,null,null,null,0,0,null,null,null,null,0,0,0]
[null,null,null,null,null,null,null,null,0,null,null,null,0,0,null,null,null,null,0,0,0]
[null,null,null,null,null,null,null,null,0,null,null,null,0,0,null,null,null,null,0,0,0]
[null,null,null,null,null,null,null,null,0,null,null,null,0,0,null,null,null,null,0,0,0]
[null,null,null,null,null,null,null,null,0,null,null,null,0,0,null,null,null,null,0,0,0]
[null,null,null,null,null,null,null,null,0,null,null,null,0,0,null,null,null,null,0,0,0]
[null,null,null,null,null,null,null,null,0,null,null,null,0,0,null,null,null,null,0,0,0]
[null,null,null,null,null,null,null,null,0,null,null,null,0,0,null,null,null,null,0,0,0]
[null,null,null,null,null,null,null,null,0,null,null,null,0,0,null,null,null,null,0,0,0]
[null,null,null,null,null,null,null,null,0,null,null,null,0,0,null,null,null,null,0,0,0]
[null,null,null,null,null,null,null,null,0,null,null,null,0,0,null,null,null,null,0,0,0]
[null,null,null,null,null,null,null,null,0,null,null,null,0,0,null,null,null,null,0,0,0]
[null,null,null,null,null,null,null,null,0,null,null,null,0,0,null,null,null,null,0,0,0]
[null,null,null,null,null,null,null,null,0,null,null,null,0,0,null,null,null,null,0,0,0]
[null,null,null,null,null,null,null,null,0,null,null,null,0,0,null,null,null,null,0,0,0]
[null,null,null,null,null,null,null,null,0,null,null,null,0,0,null,null,null,null,0,0,0]
[null,null,null,null,null,null,null,null,0,null,null,null,0,0,null,null,null,null,0,0,0]
[null,null,null,null,null,null,null,null,0,null,null,null,0,0,null,null,null,null,0,0,0]
[null,null,null,null,null,null,null,null,0,null,null,null,0,0,null,null,null,null,0,0,0]
[null,null,null,null,null,null,null,null,0,null,null,null,0,0,null,null,null,null,0,0,0]
[null,null,null,null,null,null,null,null,0,null,null,null,0,0,null,null,null,null,0,0,0]
[null,null,null,null,null,null,null,null,0,null,null,null,0,0,null,null,null,null,0,0,0]
[null,null,null,null,null,null,null,null,0,null,null,null,0,0,null,null,null,null,0,0,0]
[null,null,null,null,null,null,null,null,0,null,null,null,0,0,null,null,null,null,0,0,0]
[null,null,null,null,null,null,null,null,0,null,null,null,0,0,null,null,null,null,0,0,0]
[null,null,null,null,null,null,null,null,0,null,null,null,0,0,null,null,null,null,0,0,0]
[null,null,null,null,null,null,null,null,0,null,null,null,0,0,null,null,null,null,0,0,0]
[null,null,null,null,null,null,null,null,0,null,null,null,0,0,null,null,null,null,0,0,0]
[null,null,null,null,null,null,null,null,0,null,null,null,0,0,null,null,null,null,0,0,0]
[null,null,null,null,null,null,null,null,0,null,null,null,0,0,null,null,null,null,0,0,0]
[null,null,null,null,null,null,null,null,0,null,null,null,0,0,null,null,null,null,0,0,0]
[null,null,null,null,null,null,null,null,0,null,null,null,0,0,null,null,null,null,0,0,0]
[null,null,null,null,null,null,null,null,0,null,null,null,0,0,null,null,null,null,0,0,0]
[null,null,null,null,null,null,null,null,0,null,null,null,0,0,null,null,null,null,0,0,0]
[null,null,null,null,null,null,null,null,0,null,null,null,0,0,null,null,null,null,0,0,0]
[null,null,null,null,null,null,null,null,0,null,null,null,0,0,null,null,null,null,0,0,0]
[null,null,null,null,null,null,null,null,0,null,null,null,0,0,null,null,null,null,0,0,0]
[null,null,null,null,null,null,null,null,0,null,null,null,0,0,null,null,null,null,0,0,0]
[null,null,null,null,null,null,null,null,0,null,null,null,0,0,null,null,null,null,0,0,0]
[null,null,null,null,null,null,null,null,0,null,null,null,0,0,null,null,null,null,0,0,0]
[null,null,null,null,null,null,null,null,0,null,null,null,0,0,null,null,null,null,0,0,0]
[null,null,null,null,null,null,null,null,0,null,null,null,0,0,null,null,null,null,0,0,0]
[null,null,null,null,null,null,null,null,0,null,null,null,0,0,null,null,null,null,0,0,0]
[null,null,null,null,null,null,null,null,0,null,null,null,0,0,null,null,null,null,0,0,0]
[null,null,null,null,null,null,null,null,0,null,null,null,0,0,null,null,null,null,0,0,0]
[null,null,null,null,null,null,null,null,0,null,null,null,{"$f":"SUM(I716:L716)","v":0},0,null,null,null,null,{"$f":"SUM(N716:R716)","v":0},{"$f":"I716+N716","v":0},{"$f":"M716+S716","v":0}]
[null,null,null,null,null,null,null,null,0,null,null,null,0,0,null,null,null,null,0,0,0]
[null,null,null,null,null,null,null,null,0,null,null,null,0,0,null,null,null,null,0,0,0]
[null,null,null,null,null,null,null,null,0,null,null,null,0,0,null,null,null,null,0,0,0]
[null,null,null,null,null,null,null,null,0,null,null,null,0,0,null,null,null,null,0,0,0]
[null,null,null,null,null,null,null,null,0,null,null,null,0,0,null,null,null,null,0,0,0]
[null,null,null,null,null,null,null,null,0,null,null,null,0,0,null,null,null,null,0,0,0]
[null,null,null,null,null,null,null,null,0,null,null,null,0,0,null,null,null,null,0,0,0]
[null,null,null,null,null,null,null,null,0,null,null,null,0,0,null,null,null,null,0,0,0]
[null,null,null,null,null,null,null,null,0,null,null,null,0,0,null,null,null,null,0,0,0]
[null,null,null,null,null,null,null,null,0,null,null,null,0,0,null,null,null,null,0,0,0]
[null,null,null,null,null,null,null,null,0,null,null,null,0,0,null,null,null,null,0,0,0]
[null,null,null,null,null,null,null,null,0,null,null,null,0,0,null,null,null,null,0,0,0]
[null,null,null,null,null,null,null,null,0,null,null,null,0,0,null,null,null,null,0,0,0]
[null,null,null,null,null,null,null,null,0,null,null,null,0,0,null,null,null,null,0,0,0]
[null,null,null,null,null,null,null,null,0,null,null,null,0,0,null,null,null,null,0,0,0]
[null,null,null,null,null,null,null,null,0,null,null,null,0,0,null,null,null,null,0,0,0]
[null,null,null,null,null,null,null,null,0,null,null,null,0,0,null,null,null,null,0,0,0]
[null,null,null,null,null,null,null,null,0,null,null,null,0,0,null,null,null,null,0,0,0]
[null,null,null,null,null,null,null,null,0,null,null,null,0,0,null,null,null,null,0,0,0]
[null,null,null,null,null,null,null,null,0,null,null,null,0,0,null,null,null,null,0,0,0]
[null,null,null,null,null,null,null,null,0,null,null,null,0,0,null,null,null,null,0,0,0]
[null,null,null,null,null,null,null,null,0,null,null,null,0,0,null,null,null,null,0,0,0]
[null,null,null,null,null,null,null,null,0,null,null,null,0,0,null,null,null,null,0,0,0]
[null,null,null,null,null,null,null,null,0,null,null,null,0,0,null,null,null,null,0,0,0]
[null,null,null,null,null,null,null,null,0,null,null,null,0,0,null,null,null,null,0,0,0]
[null,null,null,null,null,null,null,null,0,null,null,null,0,0,null,null,null,null,0,0,0]
[null,null,null,null,null,null,null,null,0,null,null,null,0,0,null,null,null,null,0,0,0]
[null,null,null,null,null,null,null,null,0,null,null,null,0,0,null,null,null,null,0,0,0]
[null,null,null,null,null,null,null,null,0,null,null,null,0,0,null,null,null,null,0,0,0]
[null,null,null,null,null,null,null,null,0,null,null,null,0,0,null,null,null,null,0,0,0]
[null,null,null,null,null,null,null,null,0,null,null,null,0,0,null,null,null,null,0,0,0]
[null,null,null,null,null,null,null,null,0,null,null,null,0,0,null,null,null,null,0,0,0]
[null,null,null,null,null,null,null,null,0,null,null,null,0,0,null,null,null,null,0,0,0]
[null,null,null,null,null,null,null,null,0,null,null,null,0,0,null,null,null,null,0,0,0]
[null,null,null,null,null,null,null,null,0,null,null,null,0,0,null,null,null,null,0,0,0]
[null,null,null,null,null,null,null,null,0,null,null,null,0,0,null,null,null,null,0,0,0]
[null,null,null,null,null,null,null,null,0,null,null,null,0,0,null,null,null,null,0,0,0]
[null,null,null,null,null,null,null,null,0,null,null,null,0,0,null,null,null,null,0,0,0]
[null,null,null,null,null,null,null,null,0,null,null,null,0,0,null,null,null,null,0,0,0]
[null,null,null,null,null,null,null,null,0,null,null,null,0,0,null,null,null,null,0,0,0]
[null,null,null,null,null,null,null,null,0,null,null,null,0,0,null,null,null,null,0,0,0]
[null,null,null,null,null,null,null,null,0,null,null,null,0,0,null,null,null,null,0,0,0]
[null,null,null,null,null,null,null,null,0,null,null,null,0,0,null,null,null,null,0,0,0]
[null,null,null,null,null,null,null,null,0,null,null,null,0,0,null,null,null,null,0,0,0]
[null,null,null,null,null,null,null,null,0,null,null,null,0,0,null,null,null,null,0,0,0]
[null,null,null,null,null,null,null,null,0,null,null,null,0,0,null,null,null,null,0,0,0]
[null,null,null,null,null,null,null,null,0,null,null,null,0,0,null,null,null,null,0,0,0]
[null,null,null,null,null,null,null,null,0,null,null,null,0,0,null,null,null,null,0,0,0]
[null,null,null,null,null,null,null,null,0,null,null,null,0,0,null,null,null,null,0,0,0]
[null,null,null,null,null,null,null,null,0,null,null,null,0,0,null,null,null,null,0,0,0]
[null,null,null,null,null,null,null,null,0,null,null,null,0,0,null,null,null,null,0,0,0]
[null,null,null,null,null,null,null,null,0,null,null,null,0,0,null,null,null,null,0,0,0]
[null,null,null,null,null,null,null,null,0,null,null,null,0,0,null,null,null,null,0,0,0]
[null,null,null,null,null,null,null,null,0,null,null,null,0,0,null,null,null,null,0,0,0]
[null,null,null,null,null,null,null,null,0,null,null,null,0,0,null,null,null,null,0,0,0]
[null,null,null,null,null,null,null,null,0,null,null,null,0,0,null,null,null,null,0,0,0]
[null,null,null,null,null,null,null,null,0,null,null,null,0,0,null,null,null,null,0,0,0]
[null,null,null,null,null,null,null,null,0,null,null,null,0,0,null,null,null,null,0,0,0]
[null,null,null,null,null,null,null,null,0,null,null,null,0,0,null,null,null,null,0,0,0]
[null,null,null,null,null,null,null,null,0,null,null,null,0,0,null,null,null,null,0,0,0]
[null,null,null,null,null,null,null,null,0,null,null,null,0,0,null,null,null,null,0,0,0]
[null,null,null,null,null,null,null,null,0,null,null,null,0,0,null,null,null,null,0,0,0]
[null,null,null,null,null,null,null,null,0,null,null,null,0,0,null,null,null,null,0,0,0]
[null,null,null,null,null,null,null,null,0,null,null,null,{"$f":"SUM(I780:L780)","v":0},0,null,null,null,null,{"$f":"SUM(N780:R780)","v":0},{"$f":"I780+N780","v":0},{"$f":"M780+S780","v":0}]
[null,null,null,null,null,null,null,null,0,null,null,null,0,0,null,null,null,null,0,0,0]
[null,null,null,null,null,null,null,null,0,null,null,null,0,0,null,null,null,null,0,0,0]
[null,null,null,null,null,null,null,null,0,null,null,null,0,0,null,null,null,null,0,0,0]
[null,null,null,null,null,null,null,null,0,null,null,null,0,0,null,null,null,null,0,0,0]
[null,null,null,null,null,null,null,null,0,null,null,null,0,0,null,null,null,null,0,0,0]
[null,null,null,null,null,null,null,null,0,null,null,null,0,0,null,null,null,null,0,0,0]
[null,null,null,null,null,null,null,null,0,null,null,null,0,0,null,null,null,null,0,0,0]
[null,null,null,null,null,null,null,null,0,null,null,null,0,0,null,null,null,null,0,0,0]
[null,null,null,null,null,null,null,null,0,null,null,null,0,0,null,null,null,null,0,0,0]
[null,null,null,null,null,null,null,null,0,null,null,null,0,0,null,null,null,null,0,0,0]
[null,null,null,null,null,null,null,null,0,null,null,null,0,0,null,null,null,null,0,0,0]
[null,null,null,null,null,null,null,null,0,null,null,null,0,0,null,null,null,null,0,0,0]
[null,null,null,null,null,null,null,null,0,null,null,null,0,0,null,null,null,null,0,0,0]
[null,null,null,null,null,null,null,null,0,null,null,null,0,0,null,null,null,null,0,0,0]
[null,null,null,null,null,null,null,null,0,null,null,null,0,0,null,null,null,null,0,0,0]
[null,null,null,null,null,null,null,null,0,null,null,null,0,0,null,null,null,null,0,0,0]
[null,null,null,null,null,null,null,null,0,null,null,null,0,0,null,null,null,null,0,0,0]
[null,null,null,null,null,null,null,null,0,null,null,null,0,0,null,null,null,null,0,0,0]
[null,null,null,null,null,null,null,null,0,null,null,null,0,0,null,null,null,null,0,0,0]
[null,null,null,null,null,null,null,null,0,null,null,null,0,0,null,null,null,null,0,0,0]
[null,null,null,null,null,null,null,null,0,null,null,null,0,0,null,null,null,null,0,0,0]
[null,null,null,null,null,null,null,null,0,null,null,null,0,0,null,null,null,null,0,0,0]
[null,null,null,null,null,null,null,null,0,null,null,null,0,0,null,null,null,null,0,0,0]
[null,null,null,null,null,null,null,null,0,null,null,null,0,0,null,null,null,null,0,0,0]
[null,null,null,null,null,null,null,null,0,null,null,null,0,0,null,null,null,null,0,0,0]
[null,null,null,null,null,null,null,null,0,null,null,null,0,0,null,null,null,null,0,0,0]
[null,null,null,null,null,null,null,null,0,null,null,null,0,0,null,null,null,null,0,0,0]
[null,null,null,null,null,null,null,null,0,null,null,null,0,0,null,null,null,null,0,0,0]
[null,null,null,null,null,null,null,null,0,null,null,null,0,0,null,null,null,null,0,0,0]
[null,null,null,null,null,null,null,null,0,null,null,null,0,0,null,null,null,null,0,0,0]
[null,null,null,null,null,null,null,null,0,null,null,null,0,0,null,null,null,null,0,0,0]
[null,null,null,null,null,null,null,null,0,null,null,null,0,0,null,null,null,null,0,0,0]
[null,null,null,null,null,null,null,null,0,null,null,null,0,0,null,null,null,null,0,0,0]
[null,null,null,null,null,null,null,null,0,null,null,null,0,0,null,null,null,null,0,0,0]
[null,null,null,null,null,null,null,null,0,null,null,null,0,0,null,null,null,null,0,0,0]
[null,null,null,null,null,null,null,null,0,null,null,null,0,0,null,null,null,null,0,0,0]
[null,null,null,null,null,null,null,null,0,null,null,null,0,0,null,null,null,null,0,0,0]
[null,null,null,null,null,null,null,null,0,null,null,null,0,0,null,null,null,null,0,0,0]
[null,null,null,null,null,null,null,null,0,null,null,null,0,0,null,null,null,null,0,0,0]
[null,null,null,null,null,null,null,null,0,null,null,null,0,0,null,null,null,null,0,0,0]
[null,null,null,null,null,null,null,null,0,null,null,null,0,0,null,null,null,null,0,0,0]
[null,null,null,null,null,null,null,null,0,null,null,null,0,0,null,null,null,null,0,0,0]
[null,null,null,null,null,null,null,null,0,null,null,null,0,0,null,null,null,null,0,0,0]
[null,null,null,null,null,null,null,null,0,null,null,null,0,0,null,null,null,null,0,0,0]
[null,null,null,null,null,null,null,null,0,null,null,null,0,0,null,null,null,null,0,0,0]
[null,null,null,null,null,null,null,null,0,null,null,null,0,0,null,null,null,null,0,0,0]
[null,null,null,null,null,null,null,null,0,null,null,null,0,0,null,null,null,null,0,0,0]
[null,null,null,null,null,null,null,null,0,null,null,null,0,0,null,null,null,null,0,0,0]
[null,null,null,null,null,null,null,null,0,null,null,null,0,0,null,null,null,null,0,0,0]
[null,null,null,null,null,null,null,null,0,null,null,null,0,0,null,null,null,null,0,0,0]
[null,null,null,null,null,null,null,null,0,null,null,null,0,0,null,null,null,null,0,0,0]
[null,null,null,null,null,null,null,null,0,null,null,null,0,0,null,null,null,null,0,0,0]
[null,null,null,null,null,null,null,null,0,null,null,null,0,0,null,null,null,null,0,0,0]
[null,null,null,null,null,null,null,null,0,null,null,null,0,0,null,null,null,null,0,0,0]
[null,null,null,null,null,null,null,null,0,null,null,null,0,0,null,null,null,null,0,0,0]
[null,null,null,null,null,null,null,null,0,null,null,null,0,0,null,null,null,null,0,0,0]
[null,null,null,null,null,null,null,null,0,null,null,null,0,0,null,null,null,null,0,0,0]
[null,null,null,null,null,null,null,null,0,null,null,null,0,0,null,null,null,null,0,0,0]
[null,null,null,null,null,null,null,null,0,null,null,null,0,0,null,null,null,null,0,0,0]
[null,null,null,null,null,null,null,null,0,null,null,null,0,0,null,null,null,null,0,0,0]
[null,null,null,null,null,null,null,null,0,null,null,null,0,0,null,null,null,null,0,0,0]
[null,null,null,null,null,null,null,null,0,null,null,null,0,0,null,null,null,null,0,0,0]
[null,null,null,null,null,null,null,null,0,null,null,null,0,0,null,null,null,null,0,0,0]
[null,null,null,null,null,null,null,null,0,null,null,null,{"$f":"SUM(I844:L844)","v":0},0,null,null,null,null,{"$f":"SUM(N844:R844)","v":0},{"$f":"I844+N844","v":0},{"$f":"M844+S844","v":0}]
[null,null,null,null,null,null,null,null,0,null,null,null,0,0,null,null,null,null,0,0,0]
[null,null,null,null,null,null,null,null,0,null,null,null,0,0,null,null,null,null,0,0,0]
[null,null,null,null,null,null,null,null,0,null,null,null,0,0,null,null,null,null,0,0,0]
[null,null,null,null,null,null,null,null,0,null,null,null,0,0,null,null,null,null,0,0,0]
[null,null,null,null,null,null,null,null,0,null,null,null,0,0,null,null,null,null,0,0,0]
[null,null,null,null,null,null,null,null,0,null,null,null,0,0,null,null,null,null,0,0,0]
[null,null,null,null,null,null,null,null,0,null,null,null,0,0,null,null,null,null,0,0,0]
[null,null,null,null,null,null,null,null,0,null,null,null,0,0,null,null,null,null,0,0,0]
[null,null,null,null,null,null,null,null,0,null,null,null,0,0,null,null,null,null,0,0,0]
[null,null,null,null,null,null,null,null,0,null,null,null,0,0,null,null,null,null,0,0,0]
[null,null,null,null,null,null,null,null,0,null,null,null,0,0,null,null,null,null,0,0,0]
[null,null,null,null,null,null,null,null,0,null,null,null,0,0,null,null,null,null,0,0,0]
[null,null,null,null,null,null,null,null,0,null,null,null,0,0,null,null,null,null,0,0,0]
[null,null,null,null,null,null,null,null,0,null,null,null,0,0,null,null,null,null,0,0,0]
[null,null,null,null,null,null,null,null,0,null,null,null,0,0,null,null,null,null,0,0,0]
[null,null,null,null,null,null,null,null,0,null,null,null,0,0,null,null,null,null,0,0,0]
[null,null,null,null,null,null,null,null,0,null,null,null,0,0,null,null,null,null,0,0,0]
[null,null,null,null,null,null,null,null,0,null,null,null,0,0,null,null,null,null,0,0,0]
[null,null,null,null,null,null,null,null,0,null,null,null,0,0,null,null,null,null,0,0,0]
[null,null,null,null,null,null,null,null,0,null,null,null,0,0,null,null,null,null,0,0,0]
[null,null,null,null,null,null,null,null,0,null,null,null,0,0,null,null,null,null,0,0,0]
[null,null,null,null,null,null,null,null,0,null,null,null,0,0,null,null,null,null,0,0,0]
[null,null,null,null,null,null,null,null,0,null,null,null,0,0,null,null,null,null,0,0,0]
[null,null,null,null,null,null,null,null,0,null,null,null,0,0,null,null,null,null,0,0,0]
[null,null,null,null,null,null,null,null,0,null,null,null,0,0,null,null,null,null,0,0,0]
[null,null,null,null,null,null,null,null,0,null,null,null,0,0,null,null,null,null,0,0,0]
[null,null,null,null,null,null,null,null,0,null,null,null,0,0,null,null,null,null,0,0,0]
[null,null,null,null,null,null,null,null,0,null,null,null,0,0,null,null,null,null,0,0,0]
[null,null,null,null,null,null,null,null,0,null,null,null,0,0,null,null,null,null,0,0,0]
[null,null,null,null,null,null,null,null,0,null,null,null,0,0,null,null,null,null,0,0,0]
[null,null,null,null,null,null,null,null,0,null,null,null,0,0,null,null,null,null,0,0,0]
[null,null,null,null,null,null,null,null,0,null,null,null,0,0,null,null,null,null,0,0,0]
[null,null,null,null,null,null,null,null,0,null,null,null,0,0,null,null,null,null,0,0,0]
[null,null,null,null,null,null,null,null,0,null,null,null,0,0,null,null,null,null,0,0,0]
[null,null,null,null,null,null,null,null,0,null,null,null,0,0,null,null,null,null,0,0,0]
[null,null,null,null,null,null,null,null,0,null,null,null,0,0,null,null,null,null,0,0,0]
[null,null,null,null,null,null,null,null,0,null,null,null,0,0,null,null,null,null,0,0,0]
[null,null,null,null,null,null,null,null,0,null,null,null,0,0,null,null,null,null,0,0,0]
[null,null,null,null,null,null,null,null,0,null,null,null,0,0,null,null,null,null,0,0,0]
[null,null,null,null,null,null,null,null,0,null,null,null,0,0,null,null,null,null,0,0,0]
[null,null,null,null,null,null,null,null,0,null,null,null,0,0,null,null,null,null,0,0,0]
[null,null,null,null,null,null,null,null,0,null,null,null,0,0,null,null,null,null,0,0,0]
[null,null,null,null,null,null,null,null,0,null,null,null,0,0,null,null,null,null,0,0,0]
[null,null,null,null,null,null,null,null,0,null,null,null,0,0,null,null,null,null,0,0,0]
[null,null,null,null,null,null,null,null,0,null,null,null,0,0,null,null,null,null,0,0,0]
[null,null,null,null,null,null,null,null,0,null,null,null,0,0,null,null,null,null,0,0,0]
[null,null,null,null,null,null,null,null,0,null,null,null,0,0,null,null,null,null,0,0,0]
[null,null,null,null,null,null,null,null,0,null,null,null,0,0,null,null,null,null,0,0,0]
[null,null,null,null,null,null,null,null,0,null,null,null,0,0,null,null,null,null,0,0,0]
[null,null,null,null,null,null,null,null,0,null,null,null,0,0,null,null,null,null,0,0,0]
[null,null,null,null,null,null,null,null,0,null,null,null,0,0,null,null,null,null,0,0,0]
[null,null,null,null,null,null,null,null,0,null,null,null,0,0,null,null,null,null,0,0,0]
[null,null,null,null,null,null,null,null,0,null,null,null,0,0,null,null,null,null,0,0,0]
[null,null,null,null,null,null,null,null,0,null,null,null,0,0,null,null,null,null,0,0,0]
[null,null,null,null,null,null,null,null,0,null,null,null,0,0,null,null,null,null,0,0,0]
[null,null,null,null,null,null,null,null,0,null,null,null,0,0,null,null,null,null,0,0,0]
[null,null,null,null,null,null,null,null,0,null,null,null,0,0,null,null,null,null,0,0,0]
[null,null,null,null,null,null,null,null,0,null,null,null,0,0,null,null,null,null,0,0,0]
[null,null,null,null,null,null,null,null,0,null,null,null,0,0,null,null,null,null,0,0,0]
[null,null,null,null,null,null,null,null,0,null,null,null,0,0,null,null,null,null,0,0,0]
[null,null,null,null,null,null,null,null,0,null,null,null,0,0,null,null,null,null,0,0,0]
[null,null,null,null,null,null,null,null,0,null,null,null,0,0,null,null,null,null,0,0,0]
[null,null,null,null,null,null,null,null,0,null,null,null,0,0,null,null,null,null,0,0,0]
[null,null,null,null,null,null,null,null,0,null,null,null,{"$f":"SUM(I908:L908)","v":0},0,null,null,null,null,{"$f":"SUM(N908:R908)","v":0},{"$f":"I908+N908","v":0},{"$f":"M908+S908","v":0}]
[null,null,null,null,null,null,null,null,0,null,null,null,0,0,null,null,null,null,0,0,0]
[null,null,null,null,null,null,null,null,0,null,null,null,0,0,null,null,null,null,0,0,0]
[null,null,null,null,null,null,null,null,0,null,null,null,0,0,null,null,null,null,0,0,0]
[null,null,null,null,null,null,null,null,0,null,null,null,0,0,null,null,null,null,0,0,0]
[null,null,null,null,null,null,null,null,0,null,null,null,0,0,null,null,null,null,0,0,0]
[null,null,null,null,null,null,null,null,0,null,null,null,0,0,null,null,null,null,0,0,0]
[null,null,null,null,null,null,null,null,0,null,null,null,0,0,null,null,null,null,0,0,0]
[null,null,null,null,null,null,null,null,0,null,null,null,0,0,null,null,null,null,0,0,0]
[null,null,null,null,null,null,null,null,0,null,null,null,0,0,null,null,null,null,0,0,0]
[null,null,null,null,null,null,null,null,0,null,null,null,0,0,null,null,null,null,0,0,0]
[null,null,null,null,null,null,null,null,0,null,null,null,0,0,null,null,null,null,0,0,0]
[null,null,null,null,null,null,null,null,0,null,null,null,0,0,null,null,null,null,0,0,0]
[null,null,null,null,null,null,null,null,0,null,null,null,0,0,null,null,null,null,0,0,0]
[null,null,null,null,null,null,null,null,0,null,null,null,0,0,null,null,null,null,0,0,0]
[null,null,null,null,null,null,null,null,0,null,null,null,0,0,null,null,null,null,0,0,0]
[null,null,null,null,null,null,null,null,0,null,null,null,0,0,null,null,null,null,0,0,0]
[null,null,null,null,null,null,null,null,0,null,null,null,0,0,null,null,null,null,0,0,0]
[null,null,null,null,null,null,null,null,0,null,null,null,0,0,null,null,null,null,0,0,0]
[null,null,null,null,null,null,null,null,0,null,null,null,0,0,null,null,null,null,0,0,0]
[null,null,null,null,null,null,null,null,0,null,null,null,0,0,null,null,null,null,0,0,0]
[null,null,null,null,null,null,null,null,0,null,null,null,0,0,null,null,null,null,0,0,0]
[null,null,null,null,null,null,null,null,0,null,null,null,0,0,null,null,null,null,0,0,0]
[null,null,null,null,null,null,null,null,0,null,null,null,0,0,null,null,null,null,0,0,0]
[null,null,null,null,null,null,null,null,0,null,null,null,0,0,null,null,null,null,0,0,0]
[null,null,null,null,null,null,null,null,0,null,null,null,0,0,null,null,null,null,0,0,0]
[null,null,null,null,null,null,null,null,0,null,null,null,0,0,null,null,null,null,0,0,0]
[null,null,null,null,null,null,null,null,0,null,null,null,0,0,null,null,null,null,0,0,0]
[null,null,null,null,null,null,null,null,0,null,null,null,0,0,null,null,null,null,0,0,0]
[null,null,null,null,null,null,null,null,0,null,null,null,0,0,null,null,null,null,0,0,0]
[null,null,null,null,null,null,null,null,0,null,null,null,0,0,null,null,null,null,0,0,0]
[null,null,null,null,null,null,null,null,0,null,null,null,0,0,null,null,null,null,0,0,0]
[null,null,null,null,null,null,null,null,0,null,null,null,0,0,null,null,null,null,0,0,0]
[null,null,null,null,null,null,null,null,0,null,null,null,0,0,null,null,null,null,0,0,0]
[null,null,null,null,null,null,null,null,0,null,null,null,0,0,null,null,null,null,0,0,0]
[null,null,null,null,null,null,null,null,0,null,null,null,0,0,null,null,null,null,0,0,0]
[null,null,null,null,null,null,null,null,0,null,null,null,0,0,null,null,null,null,0,0,0]
[null,null,null,null,null,null,null,null,0,null,null,null,0,0,null,null,null,null,0,0,0]
[null,null,null,null,null,null,null,null,0,null,null,null,0,0,null,null,null,null,0,0,0]
[null,null,null,null,null,null,null,null,0,null,null,null,0,0,null,null,null,null,0,0,0]
[null,null,null,null,null,null,null,null,0,null,null,null,0,0,null,null,null,null,0,0,0]
[null,null,null,null,null,null,null,null,0,null,null,null,0,0,null,null,null,null,0,0,0]
[null,null,null,null,null,null,null,null,0,null,null,null,0,0,null,null,null,null,0,0,0]
[null,null,null,null,null,null,null,null,0,null,null,null,0,0,null,null,null,null,0,0,0]
[null,null,null,null,null,null,null,null,0,null,null,null,0,0,null,null,null,null,0,0,0]
[null,null,null,null,null,null,null,null,0,null,null,null,0,0,null,null,null,null,0,0,0]
[null,null,null,null,null,null,null,null,0,null,null,null,0,0,null,null,null,null,0,0,0]
[null,null,null,null,null,null,null,null,0,null,null,null,0,0,null,null,null,null,0,0,0]
[null,null,null,null,null,null,null,null,0,null,null,null,0,0,null,null,null,null,0,0,0]
[null,null,null,null,null,null,null,null,0,null,null,null,0,0,null,null,null,null,0,0,0]
[null,null,null,null,null,null,null,null,0,null,null,null,0,0,null,null,null,null,0,0,0]
[null,null,null,null,null,null,null,null,0,null,null,null,0,0,null,null,null,null,0,0,0]
[null,null,null,null,null,null,null,null,0,null,null,null,0,0,null,null,null,null,0,0,0]
[null,null,null,null,null,null,null,null,0,null,null,null,0,0,null,null,null,null,0,0,0]
[null,null,null,null,null,null,null,null,0,null,null,null,0,0,null,null,null,null,0,0,0]
[null,null,null,null,null,null,null,null,0,null,null,null,0,0,null,null,null,null,0,0,0]
[null,null,null,null,null,null,null,null,0,null,null,null,0,0,null,null,null,null,0,0,0]
[null,null,null,null,null,null,null,null,0,null,null,null,0,0,null,null,null,null,0,0,0]
[null,null,null,null,null,null,null,null,0,null,null,null,0,0,null,null,null,null,0,0,0]
[null,null,null,null,null,null,null,null,0,null,null,null,0,0,null,null,null,null,0,0,0]
[null,null,null,null,null,null,null,null,0,null,null,null,0,0,null,null,null,null,0,0,0]
[null,null,null,null,null,null,null,null,0,null,null,null,0,0,null,null,null,null,0,0,0]
[null,null,null,null,null,null,null,null,0,null,null,null,0,0,null,null,null,null,0,0,0]
[null,null,null,null,null,null,null,null,0,null,null,null,0,0,null,null,null,null,0,0,0]
[null,null,null,null,null,null,null,null,0,null,null,null,{"$f":"SUM(I972:L972)","v":0},0,null,null,null,null,{"$f":"SUM(N972:R972)","v":0},{"$f":"I972+N972","v":0},{"$f":"M972+S972","v":0}]
[null,null,null,null,null,null,null,null,0,null,null,null,0,0,null,null,null,null,0,0,0]
[null,null,null,null,null,null,null,null,0,null,null,null,0,0,null,null,null,null,0,0,0]
[null,null,null,null,null,null,null,null,0,null,null,null,0,0,null,null,null,null,0,0,0]
[null,null,null,null,null,null,null,null,0,null,null,null,0,0,null,null,null,null,0,0,0]
[null,null,null,null,null,null,null,null,0,null,null,null,0,0,null,null,null,null,0,0,0]
[null,null,null,null,null,null,null,null,0,null,null,null,0,0,null,null,null,null,0,0,0]
[null,null,null,null,null,null,null,null,0,null,null,null,0,0,null,null,null,null,0,0,0]
[null,null,null,null,null,null,null,null,0,null,null,null,0,0,null,null,null,null,0,0,0]
[null,null,null,null,null,null,null,null,0,null,null,null,0,0,null,null,null,null,0,0,0]
[null,null,null,null,null,null,null,null,0,null,null,null,0,0,null,null,null,null,0,0,0]
[null,null,null,null,null,null,null,null,0,null,null,null,0,0,null,null,null,null,0,0,0]
[null,null,null,null,null,null,null,null,0,null,null,null,0,0,null,null,null,null,0,0,0]
[null,null,null,null,null,null,null,null,0,null,null,null,0,0,null,null,null,null,0,0,0]
[null,null,null,null,null,null,null,null,0,null,null,null,0,0,null,null,null,null,0,0,0]
[null,null,null,null,null,null,null,null,0,null,null,null,0,0,null,null,null,null,0,0,0]
[null,null,null,null,null,null,null,null,0,null,null,null,0,0,null,null,null,null,0,0,0]
[null,null,null,null,null,null,null,null,0,null,null,null,0,0,null,null,null,null,0,0,0]
[null,null,null,null,null,null,null,null,0,null,null,null,0,0,null,null,null,null,0,0,0]
[null,null,null,null,null,null,null,null,0,null,null,null,0,0,null,null,null,null,0,0,0]
[null,null,null,null,null,null,null,null,0,null,null,null,0,0,null,null,null,null,0,0,0]
[null,null,null,null,null,null,null,null,0,null,null,null,0,0,null,null,null,null,0,0,0]
[null,null,null,null,null,null,null,null,0,null,null,null,0,0,null,null,null,null,0,0,0]
[null,null,null,null,null,null,null,null,0,null,null,null,0,0,null,null,null,null,0,0,0]
[null,null,null,null,null,null,null,null,0,null,null,null,0,0,null,null,null,null,0,0,0]
[null,null,null,null,null,null,null,null,0,null,null,null,0,0,null,null,null,null,0,0,0]
[null,null,null,null,null,null,null,null,0,null,null,null,0,0,null,null,null,null,0,0,0]
[null,null,null,null,null,null,null,null,0,null,null,null,0,0,null,null,null,null,0,0,0]
[null,null,null,null,null,null,null,null,0,null,null,null,0,0,null,null,null,null,0,0,0]
[null,null,null,null,null,null,null,null,0,null,null,null,0,0,null,null,null,null,0,0,0]
[null,null,null,null,null,null,null,null,0,null,null,null,0,0,null,null,null,null,0,0,0]
[null,null,null,null,null,null,null,null,0,null,null,null,0,0,null,null,null,null,0,0,0]
[null,null,null,null,null,null,null,null,0,null,null,null,0,0,null,null,null,null,0,0,0]
[null,null,null,null,null,null,null,null,0,null,null,null,0,0,null,null,null,null,0,0,0]
[null,null,null,null,null,null,null,null,0,null,null,null,0,0,null,null,null,null,0,0,0]
[null,null,null,null,null,null,null,null,0,null,null,null,0,0,null,null,null,null,0,0,0]
[null,null,null,null,null,null,null,null,0,null,null,null,0,0,null,null,null,null,0,0,0]
[null,null,null,null,null,null,null,null,0,null,null,null,0,0,null,null,null,null,0,0,0]
[null,null,null,null,null,null,null,null,0,null,null,null,0,0,null,null,null,null,0,0,0]
[null,null,null,null,null,null,null,null,0,null,null,null,0,0,null,null,null,null,0,0,0]
[null,null,null,null,null,null,null,null,0,null,null,null,0,0,null,null,null,null,0,0,0]
[null,null,null,null,null,null,null,null,0,null,null,null,0,0,null,null,null,null,0,0,0]
[null,null,null,null,null,null,null,null,0,null,null,null,0,0,null,null,null,null,0,0,0]
[null,null,null,null,null,null,null,null,0,null,null,null,0,0,null,null,null,null,0,0,0]
[null,null,null,null,null,null,null,null,0,null,null,null,0,0,null,null,null,null,0,0,0]
[null,null,null,null,null,null,null,null,0,null,null,null,0,0,null,null,null,null,0,0,0]
[null,null,null,null,null,null,null,null,0,null,null,null,0,0,null,null,null,null,0,0,0]
[null,null,null,null,null,null,null,null,0,null,null,null,0,0,null,null,null,null,0,0,0]
[null,null,null,null,null,null,null,null,0,null,null,null,0,0,null,null,null,null,0,0,0]
[null,null,null,null,null,null,null,null,0,null,null,null,0,0,null,null,null,null,0,0,0]
[null,null,null,null,null,null,null,null,0,null,null,null,0,0,null,null,null,null,0,0,0]
[null,null,null,null,null,null,null,null,0,null,null,null,0,0,null,null,null,null,0,0,0]
[null,null,null,null,null,null,null,null,0,null,null,null,0,0,null,null,null,null,0,0,0]
[null,null,null,null,null,null,null,null,0,null,null,null,0,0,null,null,null,null,0,0,0]
[null,null,null,null,null,null,null,null,0,null,null,null,0,0,null,null,null,null,0,0,0]
[null,null,null,null,null,null,null,null,0,null,null,null,0,0,null,null,null,null,0,0,0]
[null,null,null,null,null,null,null,null,0,null,null,null,0,0,null,null,null,null,0,0,0]
[null,null,null,null,null,null,null,null,0,null,null,null,0,0,null,null,null,null,0,0,0]
[null,null,null,null,null,null,null,null,0,null,null,null,0,0,null,null,null,null,0,0,0]
[null,null,null,null,null,null,null,null,0,null,null,null,0,0,null,null,null,null,0,0,0]
[null,null,null,null,null,null,null,null,0,null,null,null,0,0,null,null,null,null,0,0,0]
[null,null,null,null,null,null,null,null,0,null,null,null,0,0,null,null,null,null,0,0,0]
[null,null,null,null,null,null,null,null,0,null,null,null,0,0,null,null,null,null,0,0,0]
[null,null,null,null,null,null,null,null,0,null,null,null,0,0,null,null,null,null,0,0,0]
[null,null,null,null,null,null,null,null,0,null,null,null,{"$f":"SUM(I1036:L1036)","v":0},0,null,null,null,null,{"$f":"SUM(N1036:R1036)","v":0},{"$f":"I1036+N1036","v":0},{"$f":"M1036+S1036","v":0}]
[null,null,null,null,null,null,null,null,0,null,null,null,0,0,null,null,null,null,0,0,0]
[null,null,null,null,null,null,null,null,0,null,null,null,0,0,null,null,null,null,0,0,0]
[null,null,null,null,null,null,null,null,0,null,null,null,0,0,null,null,null,null,0,0,0]
[null,null,null,null,null,null,null,null,0,null,null,null,0,0,null,null,null,null,0,0,0]
[null,null,null,null,null,null,null,null,0,null,null,null,0,0,null,null,null,null,0,0,0]
[null,null,null,null,null,null,null,null,0,null,null,null,0,0,null,null,null,null,0,0,0]
[null,null,null,null,null,null,null,null,0,null,null,null,0,0,null,null,null,null,0,0,0]
[null,null,null,null,null,null,null,null,0,null,null,null,0,0,null,null,null,null,0,0,0]
[null,null,null,null,null,null,null,null,0,null,null,null,0,0,null,null,null,null,0,0,0]
[null,null,null,null,null,null,null,null,0,null,null,null,0,0,null,null,null,null,0,0,0]
[null,null,null,null,null,null,null,null,0,null,null,null,0,0,null,null,null,null,0,0,0]
[null,null,null,null,null,null,null,null,0,null,null,null,0,0,null,null,null,null,0,0,0]
[null,null,null,null,null,null,null,null,0,null,null,null,0,0,null,null,null,null,0,0,0]
[null,null,null,null,null,null,null,null,0,null,null,null,0,0,null,null,null,null,0,0,0]
[null,null,null,null,null,null,null,null,0,null,null,null,0,0,null,null,null,null,0,0,0]
[null,null,null,null,null,null,null,null,0,null,null,null,0,0,null,null,null,null,0,0,0]
[null,null,null,null,null,null,null,null,0,null,null,null,0,0,null,null,null,null,0,0,0]
[null,null,null,null,null,null,null,null,0,null,null,null,0,0,null,null,null,null,0,0,0]
[null,null,null,null,null,null,null,null,0,null,null,null,0,0,null,null,null,null,0,0,0]
[null,null,null,null,null,null,null,null,0,null,null,null,0,0,null,null,null,null,0,0,0]
[null,null,null,null,null,null,null,null,0,null,null,null,0,0,null,null,null,null,0,0,0]
[null,null,null,null,null,null,null,null,0,null,null,null,0,0,null,null,null,null,0,0,0]
[null,null,null,null,null,null,null,null,0,null,null,null,0,0,null,null,null,null,0,0,0]
[null,null,null,null,null,null,null,null,0,null,null,null,0,0,null,null,null,null,0,0,0]
[null,null,null,null,null,null,null,null,0,null,null,null,0,0,null,null,null,null,0,0,0]
[null,null,null,null,null,null,null,null,0,null,null,null,0,0,null,null,null,null,0,0,0]
[null,null,null,null,null,null,null,null,0,null,null,null,0,0,null,null,null,null,0,0,0]
[null,null,null,null,null,null,null,null,0,null,null,null,0,0,null,null,null,null,0,0,0]
[null,null,null,null,null,null,null,null,0,null,null,null,0,0,null,null,null,null,0,0,0]
[null,null,null,null,null,null,null,null,0,null,null,null,0,0,null,null,null,null,0,0,0]
[null,null,null,null,null,null,null,null,0,null,null,null,0,0,null,null,null,null,0,0,0]
[null,null,null,null,null,null,null,null,0,null,null,null,0,0,null,null,null,null,0,0,0]
[null,null,null,null,null,null,null,null,0,null,null,null,0,0,null,null,null,null,0,0,0]
[null,null,null,null,null,null,null,null,0,null,null,null,0,0,null,null,null,null,0,0,0]
[null,null,null,null,null,null,null,null,0,null,null,null,0,0,null,null,null,null,0,0,0]
[null,null,null,null,null,null,null,null,0,null,null,null,0,0,null,null,null,null,0,0,0]
[null,null,null,null,null,null,null,null,0,null,null,null,0,0,null,null,null,null,0,0,0]
[null,null,null,null,null,null,null,null,0,null,null,null,0,0,null,null,null,null,0,0,0]
[null,null,null,null,null,null,null,null,0,null,null,null,0,0,null,null,null,null,0,0,0]
[null,null,null,null,null,null,null,null,0,null,null,null,0,0,null,null,null,null,0,0,0]
[null,null,null,null,null,null,null,null,0,null,null,null,0,0,null,null,null,null,0,0,0]
[null,null,null,null,null,null,null,null,0,null,null,null,0,0,null,null,null,null,0,0,0]
[null,null,null,null,null,null,null,null,0,null,null,null,0,0,null,null,null,null,0,0,0]
[null,null,null,null,null,null,null,null,0,null,null,null,0,0,null,null,null,null,0,0,0]
[null,null,null,null,null,null,null,null,0,null,null,null,0,0,null,null,null,null,0,0,0]
[null,null,null,null,null,null,null,null,0,null,null,null,0,0,null,null,null,null,0,0,0]
[null,null,null,null,null,null,null,null,0,null,null,null,0,0,null,null,null,null,0,0,0]
[null,null,null,null,null,null,null,null,0,null,null,null,0,0,null,null,null,null,0,0,0]
[null,null,null,null,null,null,null,null,0,null,null,null,0,0,null,null,null,null,0,0,0]
[null,null,null,null,null,null,null,null,0,null,null,null,0,0,null,null,null,null,0,0,0]
[null,null,null,null,null,null,null,null,0,null,null,null,0,0,null,null,null,null,0,0,0]
[null,null,null,null,null,null,null,null,0,null,null,null,0,0,null,null,null,null,0,0,0]
[null,null,null,null,null,null,null,null,0,null,null,null,0,0,null,null,null,null,0,0,0]
[null,null,null,null,null,null,null,null,0,null,null,null,0,0,null,null,null,null,0,0,0]
[null,null,null,null,null,null,null,null,0,null,null,null,0,0,null,null,null,null,0,0,0]
[null,null,null,null,null,null,null,null,0,null,null,null,0,0,null,null,null,null,0,0,0]
[null,null,null,null,null,null,null,null,0,null,null,null,0,0,null,null,null,null,0,0,0]
[null,null,null,null,null,null,null,null,0,null,null,null,0,0,null,null,null,null,0,0,0]
[null,null,null,null,null,null,null,null,0,null,null,null,0,0,null,null,null,null,0,0,0]
[null,null,null,null,null,null,null,null,0,null,null,null,0,0,null,null,null,null,0,0,0]
[null,null,null,null,null,null,null,null,0,null,null,null,0,0,null,null,null,null,0,0,0]
[null,null,null,null,null,null,null,null,0,null,null,null,0,0,null,null,null,null,0,0,0]
[null,null,null,null,null,null,null,null,0,null,null,null,0,0,null,null,null,null,0,0,0]
[null,null,null,null,null,null,null,null,0,null,null,null,{"$f":"SUM(I1100:L1100)","v":0},0,null,null,null,null,{"$f":"SUM(N1100:R1100)","v":0},{"$f":"I1100+N1100","v":0},{"$f":"M1100+S1100","v":0}]
[null,null,null,null,null,null,null,null,0,null,null,null,0,0,null,null,null,null,0,0,0]
[null,null,null,null,null,null,null,null,0,null,null,null,0,0,null,null,null,null,0,0,0]
[null,null,null,null,null,null,null,null,0,null,null,null,0,0,null,null,null,null,0,0,0]
[null,null,null,null,null,null,null,null,0,null,null,null,0,0,null,null,null,null,0,0,0]
[null,null,null,null,null,null,null,null,0,null,null,null,0,0,null,null,null,null,0,0,0]
[null,null,null,null,null,null,null,null,0,null,null,null,0,0,null,null,null,null,0,0,0]
[null,null,null,null,null,null,null,null,0,null,null,null,0,0,null,null,null,null,0,0,0]
[null,null,null,null,null,null,null,null,0,null,null,null,0,0,null,null,null,null,0,0,0]
[null,null,null,null,null,null,null,null,0,null,null,null,0,0,null,null,null,null,0,0,0]
[null,null,null,null,null,null,null,null,0,null,null,null,0,0,null,null,null,null,0,0,0]
[null,null,null,null,null,null,null,null,0,null,null,null,0,0,null,null,null,null,0,0,0]
[null,null,null,null,null,null,null,null,0,null,null,null,0,0,null,null,null,null,0,0,0]
[null,null,null,null,null,null,null,null,0,null,null,null,0,0,null,null,null,null,0,0,0]
[null,null,null,null,null,null,null,null,0,null,null,null,0,0,null,null,null,null,0,0,0]
[null,null,null,null,null,null,null,null,0,null,null,null,0,0,null,null,null,null,0,0,0]
[null,null,null,null,null,null,null,null,0,null,null,null,0,0,null,null,null,null,0,0,0]
[null,null,null,null,null,null,null,null,0,null,null,null,0,0,null,null,null,null,0,0,0]
[null,null,null,null,null,null,null,null,0,null,null,null,0,0,null,null,null,null,0,0,0]
[null,null,null,null,null,null,null,null,0,null,null,null,0,0,null,null,null,null,0,0,0]
[null,null,null,null,null,null,null,null,0,null,null,null,0,0,null,null,null,null,0,0,0]
[null,null,null,null,null,null,null,null,0,null,null,null,0,0,null,null,null,null,0,0,0]
[null,null,null,null,null,null,null,null,0,null,null,null,0,0,null,null,null,null,0,0,0]
[null,null,null,null,null,null,null,null,0,null,null,null,0,0,null,null,null,null,0,0,0]
[null,null,null,null,null,null,null,null,0,null,null,null,0,0,null,null,null,null,0,0,0]
[null,null,null,null,null,null,null,null,0,null,null,null,0,0,null,null,null,null,0,0,0]
[null,null,null,null,null,null,null,null,0,null,null,null,0,0,null,null,null,null,0,0,0]
[null,null,null,null,null,null,null,null,0,null,null,null,0,0,null,null,null,null,0,0,0]
[null,null,null,null,null,null,null,null,0,null,null,null,0,0,null,null,null,null,0,0,0]
[null,null,null,null,null,null,null,null,0,null,null,null,0,0,null,null,null,null,0,0,0]
[null,null,null,null,null,null,null,null,0,null,null,null,0,0,null,null,null,null,0,0,0]
[null,null,null,null,null,null,null,null,0,null,null,null,0,0,null,null,null,null,0,0,0]
[null,null,null,null,null,null,null,null,0,null,null,null,0,0,null,null,null,null,0,0,0]
[null,null,null,null,null,null,null,null,0,null,null,null,0,0,null,null,null,null,0,0,0]
[null,null,null,null,null,null,null,null,0,null,null,null,0,0,null,null,null,null,0,0,0]
[null,null,null,null,null,null,null,null,0,null,null,null,0,0,null,null,null,null,0,0,0]
[null,null,null,null,null,null,null,null,0,null,null,null,0,0,null,null,null,null,0,0,0]
[null,null,null,null,null,null,null,null,0,null,null,null,0,0,null,null,null,null,0,0,0]
[null,null,null,null,null,null,null,null,0,null,null,null,0,0,null,null,null,null,0,0,0]
[null,null,null,null,null,null,null,null,0,null,null,null,0,0,null,null,null,null,0,0,0]
[null,null,null,null,null,null,null,null,0,null,null,null,0,0,null,null,null,null,0,0,0]
[null,null,null,null,null,null,null,null,0,null,null,null,0,0,null,null,null,null,0,0,0]
[null,null,null,null,null,null,null,null,0,null,null,null,0,0,null,null,null,null,0,0,0]
[null,null,null,null,null,null,null,null,0,null,null,null,0,0,null,null,null,null,0,0,0]
[null,null,null,null,null,null,null,null,0,null,null,null,0,0,null,null,null,null,0,0,0]
[null,null,null,null,null,null,null,null,0,null,null,null,0,0,null,null,null,null,0,0,0]
[null,null,null,null,null,null,null,null,0,null,null,null,0,0,null,null,null,null,0,0,0]
[null,null,null,null,null,null,null,null,0,null,null,null,0,0,null,null,null,null,0,0,0]
[null,null,null,null,null,null,null,null,0,null,null,null,0,0,null,null,null,null,0,0,0]
[null,null,null,null,null,null,null,null,0,null,null,null,0,0,null,null,null,null,0,0,0]
[null,null,null,null,null,null,null,null,0,null,null,null,0,0,null,null,null,null,0,0,0]
[null,null,null,null,null,null,null,null,0,null,null,null,0,0,null,null,null,null,0,0,0]
[null,null,null,null,null,null,null,null,0,null,null,null,0,0,null,null,null,null,0,0,0]
[null,null,null,null,null,null,null,null,0,null,null,null,0,0,null,null,null,null,0,0,0]
[null,null,null,null,null,null,null,null,0,null,null,null,0,0,null,null,null,null,0,0,0]
[null,null,null,null,null,null,null,null,0,null,null,null,0,0,null,null,null,null,0,0,0]
[null,null,null,null,null,null,null,null,0,null,null,null,0,0,null,null,null,null,0,0,0]
[null,null,null,null,null,null,null,null,0,null,null,null,0,0,null,null,null,null,0,0,0]
[null,null,null,null,null,null,null,null,0,null,null,null,0,0,null,null,null,null,0,0,0]
[null,null,null,null,null,null,null,null,0,null,null,null,0,0,null,null,null,null,0,0,0]
[null,null,null,null,null,null,null,null,0,null,null,null,0,0,null,null,null,null,0,0,0]
[null,null,null,null,null,null,null,null,0,null,null,null,0,0,null,null,null,null,0,0,0]
[null,null,null,null,null,null,null,null,0,null,null,null,0,0,null,null,null,null,0,0,0]
[null,null,null,null,null,null,null,null,0,null,null,null,0,0,null,null,null,null,0,0,0]
[null,null,null,null,null,null,null,null,0,null,null,null,{"$f":"SUM(I1164:L1164)","v":0},0,null,null,null,null,{"$f":"SUM(N1164:R1164)","v":0},{"$f":"I1164+N1164","v":0},{"$f":"M1164+S1164","v":0}]
[null,null,null,null,null,null,null,null,0,null,null,null,0,0,null,null,null,null,0,0,0]
[null,null,null,null,null,null,null,null,0,null,null,null,0,0,null,null,null,null,0,0,0]
[null,null,null,null,null,null,null,null,0,null,null,null,0,0,null,null,null,null,0,0,0]
[null,null,null,null,null,null,null,null,0,null,null,null,0,0,null,null,null,null,0,0,0]
[null,null,null,null,null,null,null,null,0,null,null,null,0,0,null,null,null,null,0,0,0]
[null,null,null,null,null,null,null,null,0,null,null,null,0,0,null,null,null,null,0,0,0]
[null,null,null,null,null,null,null,null,0,null,null,null,0,0,null,null,null,null,0,0,0]
[null,null,null,null,null,null,null,null,0,null,null,null,0,0,null,null,null,null,0,0,0]
[null,null,null,null,null,null,null,null,0,null,null,null,0,0,null,null,null,null,0,0,0]
[null,null,null,null,null,null,null,null,0,null,null,null,0,0,null,null,null,null,0,0,0]
[null,null,null,null,null,null,null,null,0,null,null,null,0,0,null,null,null,null,0,0,0]
[null,null,null,null,null,null,null,null,0,null,null,null,0,0,null,null,null,null,0,0,0]
[null,null,null,null,null,null,null,null,0,null,null,null,0,0,null,null,null,null,0,0,0]
[null,null,null,null,null,null,null,null,0,null,null,null,0,0,null,null,null,null,0,0,0]
[null,null,null,null,null,null,null,null,0,null,null,null,0,0,null,null,null,null,0,0,0]
[null,null,null,null,null,null,null,null,0,null,null,null,0,0,null,null,null,null,0,0,0]
[null,null,null,null,null,null,null,null,0,null,null,null,0,0,null,null,null,null,0,0,0]
[null,null,null,null,null,null,null,null,0,null,null,null,0,0,null,null,null,null,0,0,0]
[null,null,null,null,null,null,null,null,0,null,null,null,0,0,null,null,null,null,0,0,0]
[null,null,null,null,null,null,null,null,0,null,null,null,0,0,null,null,null,null,0,0,0]
[null,null,null,null,null,null,null,null,0,null,null,null,0,0,null,null,null,null,0,0,0]
[null,null,null,null,null,null,null,null,0,null,null,null,0,0,null,null,null,null,0,0,0]
[null,null,null,null,null,null,null,null,0,null,null,null,0,0,null,null,null,null,0,0,0]
[null,null,null,null,null,null,null,null,0,null,null,null,0,0,null,null,null,null,0,0,0]
[null,null,null,null,null,null,null,null,0,null,null,null,0,0,null,null,null,null,0,0,0]
[null,null,null,null,null,null,null,null,0,null,null,null,0,0,null,null,null,null,0,0,0]
[null,null,null,null,null,null,null,null,0,null,null,null,0,0,null,null,null,null,0,0,0]
[null,null,null,null,null,null,null,null,0,null,null,null,0,0,null,null,null,null,0,0,0]
[null,null,null,null,null,null,null,null,0,null,null,null,0,0,null,null,null,null,0,0,0]
[null,null,null,null,null,null,null,null,0,null,null,null,0,0,null,null,null,null,0,0,0]
[null,null,null,null,null,null,null,null,0,null,null,null,0,0,null,null,null,null,0,0,0]
[null,null,null,null,null,null,null,null,0,null,null,null,0,0,null,null,null,null,0,0,0]
[null,null,null,null,null,null,null,null,0,null,null,null,0,0,null,null,null,null,0,0,0]
[null,null,null,null,null,null,null,null,0,null,null,null,0,0,null,null,null,null,0,0,0]
[null,null,null,null,null,null,null,null,0,null,null,null,0,0,null,null,null,null,0,0,0]
[null,null,null,null,null,null,null,null,0,null,null,null,0,0,null,null,null,null,0,0,0]
[null,null,null,null,null,null,null,null,0,null,null,null,0,0,null,null,null,null,0,0,0]
[null,null,null,null,null,null,null,null,0,null,null,null,0,0,null,null,null,null,0,0,0]
[null,null,null,null,null,null,null,null,0,null,null,null,0,0,null,null,null,null,0,0,0]
[null,null,null,null,null,null,null,null,0,null,null,null,0,0,null,null,null,null,0,0,0]
[null,null,null,null,null,null,null,null,0,null,null,null,0,0,null,null,null,null,0,0,0]
[null,null,null,null,null,null,null,null,0,null,null,null,0,0,null,null,null,null,0,0,0]
[null,null,null,null,null,null,null,null,0,null,null,null,0,0,null,null,null,null,0,0,0]
[null,null,null,null,null,null,null,null,0,null,null,null,0,0,null,null,null,null,0,0,0]
[null,null,null,null,null,null,null,null,0,null,null,null,0,0,null,null,null,null,0,0,0]
[null,null,null,null,null,null,null,null,0,null,null,null,0,0,null,null,null,null,0,0,0]
[null,null,null,null,null,null,null,null,0,null,null,null,0,0,null,null,null,null,0,0,0]
[null,null,null,null,null,null,null,null,0,null,null,null,0,0,null,null,null,null,0,0,0]
[null,null,null,null,null,null,null,null,0,null,null,null,0,0,null,null,null,null,0,0,0]
[null,null,null,null,null,null,null,null,0,null,null,null,0,0,null,null,null,null,0,0,0]
[null,null,null,null,null,null,null,null,0,null,null,null,0,0,null,null,null,null,0,0,0]
[null,null,null,null,null,null,null,null,0,null,null,null,0,0,null,null,null,null,0,0,0]
[null,null,null,null,null,null,null,null,0,null,null,null,0,0,null,null,null,null,0,0,0]
[null,null,null,null,null,null,null,null,0,null,null,null,0,0,null,null,null,null,0,0,0]
[null,null,null,null,null,null,null,null,0,null,null,null,0,0,null,null,null,null,0,0,0]
[null,null,null,null,null,null,null,null,0,null,null,null,0,0,null,null,null,null,0,0,0]
[null,null,null,null,null,null,null,null,0,null,null,null,0,0,null,null,null,null,0,0,0]
[null,null,null,null,null,null,null,null,0,null,null,null,0,0,null,null,null,null,0,0,0]
[null,null,null,null,null,null,null,null,0,null,null,null,0,0,null,null,null,null,0,0,0]
[null,null,null,null,null,null,null,null,0,null,null,null,0,0,null,null,null,null,0,0,0]
[null,null,null,null,null,null,null,null,0,null,null,null,0,0,null,null,null,null,0,0,0]
[null,null,null,null,null,null,null,null,0,null,null,null,0,0,null,null,null,null,0,0,0]
[null,null,null,null,null,null,null,null,0,null,null,null,0,0,null,null,null,null,0,0,0]
[null,null,null,null,null,null,null,null,0,null,null,null,{"$f":"SUM(I1228:L1228)","v":0},0,null,null,null,null,{"$f":"SUM(N1228:R1228)","v":0},{"$f":"I1228+N1228","v":0},{"$f":"M1228+S1228","v":0}]
[null,null,null,null,null,null,null,null,0,null,null,null,0,0,null,null,null,null,0,0,0]
[null,null,null,null,null,null,null,null,0,null,null,null,0,0,null,null,null,null,0,0,0]
[null,null,null,null,null,null,null,null,0,null,null,null,0,0,null,null,null,null,0,0,0]
[null,null,null,null,null,null,null,null,0,null,null,null,0,0,null,null,null,null,0,0,0]
[null,null,null,null,null,null,null,null,0,null,null,null,0,0,null,null,null,null,0,0,0]
[null,null,null,null,null,null,null,null,0,null,null,null,0,0,null,null,null,null,0,0,0]
[null,null,null,null,null,null,null,null,0,null,null,null,0,0,null,null,null,null,0,0,0]
[null,null,null,null,null,null,null,null,0,null,null,null,0,0,null,null,null,null,0,0,0]
[null,null,null,null,null,null,null,null,0,null,null,null,0,0,null,null,null,null,0,0,0]
[null,null,null,null,null,null,null,null,0,null,null,null,0,0,null,null,null,null,0,0,0]
[null,null,null,null,null,null,null,null,0,null,null,null,0,0,null,null,null,null,0,0,0]
[null,null,null,null,null,null,null,null,0,null,null,null,0,0,null,null,null,null,0,0,0]
[null,null,null,null,null,null,null,null,0,null,null,null,0,0,null,null,null,null,0,0,0]
[null,null,null,null,null,null,null,null,0,null,null,null,0,0,null,null,null,null,0,0,0]
[null,null,null,null,null,null,null,null,0,null,null,null,0,0,null,null,null,null,0,0,0]
[null,null,null,null,null,null,null,null,0,null,null,null,0,0,null,null,null,null,0,0,0]
[null,null,null,null,null,null,null,null,0,null,null,null,0,0,null,null,null,null,0,0,0]
[null,null,null,null,null,null,null,null,0,null,null,null,0,0,null,null,null,null,0,0,0]
[null,null,null,null,null,null,null,null,0,null,null,null,0,0,null,null,null,null,0,0,0]
[null,null,null,null,null,null,null,null,0,null,null,null,0,0,null,null,null,null,0,0,0]
[null,null,null,null,null,null,null,null,0,null,null,null,0,0,null,null,null,null,0,0,0]
[null,null,null,null,null,null,null,null,0,null,null,null,0,0,null,null,null,null,0,0,0]
[null,null,null,null,null,null,null,null,0,null,null,null,0,0,null,null,null,null,0,0,0]
[null,null,null,null,null,null,null,null,0,null,null,null,0,0,null,null,null,null,0,0,0]
[null,null,null,null,null,null,null,null,0,null,null,null,0,0,null,null,null,null,0,0,0]
[null,null,null,null,null,null,null,null,0,null,null,null,0,0,null,null,null,null,0,0,0]
[null,null,null,null,null,null,null,null,0,null,null,null,0,0,null,null,null,null,0,0,0]
[null,null,null,null,null,null,null,null,0,null,null,null,0,0,null,null,null,null,0,0,0]
[null,null,null,null,null,null,null,null,0,null,null,null,0,0,null,null,null,null,0,0,0]
[null,null,null,null,null,null,null,null,0,null,null,null,0,0,null,null,null,null,0,0,0]
[null,null,null,null,null,null,null,null,0,null,null,null,0,0,null,null,null,null,0,0,0]
[null,null,null,null,null,null,null,null,0,null,null,null,0,0,null,null,null,null,0,0,0]
[null,null,null,null,null,null,null,null,0,null,null,null,0,0,null,null,null,null,0,0,0]
[null,null,null,null,null,null,null,null,0,null,null,null,0,0,null,null,null,null,0,0,0]
[null,null,null,null,null,null,null,null,0,null,null,null,0,0,null,null,null,null,0,0,0]
[null,null,null,null,null,null,null,null,0,null,null,null,0,0,null,null,null,null,0,0,0]
[null,null,null,null,null,null,null,null,0,null,null,null,0,0,null,null,null,null,0,0,0]
[null,null,null,null,null,null,null,null,0,null,null,null,0,0,null,null,null,null,0,0,0]
[null,null,null,null,null,null,null,null,0,null,null,null,0,0,null,null,null,null,0,0,0]
[null,null,null,null,null,null,null,null,0,null,null,null,0,0,null,null,null,null,0,0,0]
[null,null,null,null,null,null,null,null,0,null,null,null,0,0,null,null,null,null,0,0,0]
[null,null,null,null,null,null,null,null,0,null,null,null,0,0,null,null,null,null,0,0,0]
[null,null,null,null,null,null,null,null,0,null,null,null,0,0,null,null,null,null,0,0,0]
[null,null,null,null,null,null,null,null,0,null,null,null,0,0,null,null,null,null,0,0,0]
[null,null,null,null,null,null,null,null,0,null,null,null,0,0,null,null,null,null,0,0,0]
[null,null,null,null,null,null,null,null,0,null,null,null,0,0,null,null,null,null,0,0,0]
[null,null,null,null,null,null,null,null,0,null,null,null,0,0,null,null,null,null,0,0,0]
[null,null,null,null,null,null,null,null,0,null,null,null,0,0,null,null,null,null,0,0,0]
[null,null,null,null,null,null,null,null,0,null,null,null,0,0,null,null,null,null,0,0,0]
[null,null,null,null,null,null,null,null,0,null,null,null,0,0,null,null,null,null,0,0,0]
[null,null,null,null,null,null,null,null,0,null,null,null,0,0,null,null,null,null,0,0,0]
[null,null,null,null,null,null,null,null,0,null,null,null,0,0,null,null,null,null,0,0,0]
[null,null,null,null,null,null,null,null,0,null,null,null,0,0,null,null,null,null,0,0,0]
[null,null,null,null,null,null,null,null,0,null,null,null,0,0,null,null,null,null,0,0,0]
[null,null,null,null,null,null,null,null,0,null,null,null,0,0,null,null,null,null,0,0,0]
[null,null,null,null,null,null,null,null,0,null,null,null,0,0,null,null,null,null,0,0,0]
[null,null,null,null,null,null,null,null,0,null,null,null,0,0,null,null,null,null,0,0,0]
[null,null,null,null,null,null,null,null,0,null,null,null,0,0,null,null,null,null,0,0,0]
[null,null,null,null,null,null,null,null,0,null,null,null,0,0,null,null,null,null,0,0,0]
[null,null,null,null,null,null,null,null,0,null,null,null,0,0,null,null,null,null,0,0,0]
[null,null,null,null,null,null,null,null,0,null,null,null,0,0,null,null,null,null,0,0,0]
[null,null,null,null,null,null,null,null,0,null,null,null,0,0,null,null,null,null,0,0,0]
[null,null,null,null,null,null,null,null,0,null,null,null,0,0,null,null,null,null,0,0,0]
[null,null,null,null,null,null,null,null,0,null,null,null,{"$f":"SUM(I1292:L1292)","v":0},0,null,null,null,null,{"$f":"SUM(N1292:R1292)","v":0},{"$f":"I1292+N1292","v":0},{"$f":"M1292+S1292","v":0}]
[null,null,null,null,null,null,null,null,0,null,null,null,0,0,null,null,null,null,0,0,0]
[null,null,null,null,null,null,null,null,0,null,null,null,0,0,null,null,null,null,0,0,0]
[null,null,null,null,null,null,null,null,0,null,null,null,0,0,null,null,null,null,0,0,0]
[null,null,null,null,null,null,null,null,0,null,null,null,0,0,null,null,null,null,0,0,0]
[null,null,null,null,null,null,null,null,0,null,null,null,0,0,null,null,null,null,0,0,0]
[null,null,null,null,null,null,null,null,0,null,null,null,0,0,null,null,null,null,0,0,0]
[null,null,null,null,null,null,null,null,0,null,null,null,0,0,null,null,null,null,0,0,0]
[null,null,null,null,null,null,null,null,0,null,null,null,0,0,null,null,null,null,0,0,0]
[null,null,null,null,null,null,null,null,0,null,null,null,0,0,null,null,null,null,0,0,0]
[null,null,null,null,null,null,null,null,0,null,null,null,0,0,null,null,null,null,0,0,0]
[null,null,null,null,null,null,null,null,0,null,null,null,0,0,null,null,null,null,0,0,0]
[null,null,null,null,null,null,null,null,0,null,null,null,0,0,null,null,null,null,0,0,0]
[null,null,null,null,null,null,null,null,0,null,null,null,0,0,null,null,null,null,0,0,0]
[null,null,null,null,null,null,null,null,0,null,null,null,0,0,null,null,null,null,0,0,0]
[null,null,null,null,null,null,null,null,0,null,null,null,0,0,null,null,null,null,0,0,0]
[null,null,null,null,null,null,null,null,0,null,null,null,0,0,null,null,null,null,0,0,0]
[null,null,null,null,null,null,null,null,0,null,null,null,0,0,null,null,null,null,0,0,0]
[null,null,null,null,null,null,null,null,0,null,null,null,0,0,null,null,null,null,0,0,0]
[null,null,null,null,null,null,null,null,0,null,null,null,0,0,null,null,null,null,0,0,0]
[null,null,null,null,null,null,null,null,0,null,null,null,0,0,null,null,null,null,0,0,0]
[null,null,null,null,null,null,null,null,0,null,null,null,0,0,null,null,null,null,0,0,0]
[null,null,null,null,null,null,null,null,0,null,null,null,0,0,null,null,null,null,0,0,0]
[null,null,null,null,null,null,null,null,0,null,null,null,0,0,null,null,null,null,0,0,0]
[null,null,null,null,null,null,null,null,0,null,null,null,0,0,null,null,null,null,0,0,0]
[null,null,null,null,null,null,null,null,0,null,null,null,0,0,null,null,null,null,0,0,0]
[null,null,null,null,null,null,null,null,0,null,null,null,0,0,null,null,null,null,0,0,0]
[null,null,null,null,null,null,null,null,0,null,null,null,0,0,null,null,null,null,0,0,0]
[null,null,null,null,null,null,null,null,0,null,null,null,0,0,null,null,null,null,0,0,0]
[null,null,null,null,null,null,null,null,0,null,null,null,0,0,null,null,null,null,0,0,0]
[null,null,null,null,null,null,null,null,0,null,null,null,0,0,null,null,null,null,0,0,0]
[null,null,null,null,null,null,null,null,0,null,null,null,0,0,null,null,null,null,0,0,0]
[null,null,null,null,null,null,null,null,0,null,null,null,0,0,null,null,null,null,0,0,0]
[null,null,null,null,null,null,null,null,0,null,null,null,0,0,null,null,null,null,0,0,0]
[null,null,null,null,null,null,null,null,0,null,null,null,0,0,null,null,null,null,0,0,0]
[null,null,null,null,null,null,null,null,0,null,null,null,0,0,null,null,null,null,0,0,0]
[null,null,null,null,null,null,null,null,0,null,null,null,0,0,null,null,null,null,0,0,0]
[null,null,null,null,null,null,null,null,0,null,null,null,0,0,null,null,null,null,0,0,0]
[null,null,null,null,null,null,null,null,0,null,null,null,0,0,null,null,null,null,0,0,0]
[null,null,null,null,null,null,null,null,0,null,null,null,0,0,null,null,null,null,0,0,0]
[null,null,null,null,null,null,null,null,0,null,null,null,0,0,null,null,null,null,0,0,0]
[null,null,null,null,null,null,null,null,0,null,null,null,0,0,null,null,null,null,0,0,0]
[null,null,null,null,null,null,null,null,0,null,null,null,0,0,null,null,null,null,0,0,0]
[null,null,null,null,null,null,null,null,0,null,null,null,0,0,null,null,null,null,0,0,0]
[null,null,null,null,null,null,null,null,0,null,null,null,0,0,null,null,null,null,0,0,0]
[null,null,null,null,null,null,null,null,0,null,null,null,0,0,null,null,null,null,0,0,0]
[null,null,null,null,null,null,null,null,0,null,null,null,0,0,null,null,null,null,0,0,0]
[null,null,null,null,null,null,null,null,0,null,null,null,0,0,null,null,null,null,0,0,0]
[null,null,null,null,null,null,null,null,0,null,null,null,0,0,null,null,null,null,0,0,0]
[null,null,null,null,null,null,null,null,0,null,null,null,0,0,null,null,null,null,0,0,0]
[null,null,null,null,null,null,null,null,0,null,null,null,0,0,null,null,null,null,0,0,0]
[null,null,null,null,null,null,null,null,0,null,null,null,0,0,null,null,null,null,0,0,0]
[null,null,null,null,null,null,null,null,0,null,null,null,0,0,null,null,null,null,0,0,0]
[null,null,null,null,null,null,null,null,0,null,null,null,0,0,null,null,null,null,0,0,0]
[null,null,null,null,null,null,null,null,0,null,null,null,0,0,null,null,null,null,0,0,0]
[null,null,null,null,null,null,null,null,0,null,null,null,0,0,null,null,null,null,0,0,0]
[null,null,null,null,null,null,null,null,0,null,null,null,0,0,null,null,null,null,0,0,0]
[null,null,null,null,null,null,null,null,0,null,null,null,0,0,null,null,null,null,0,0,0]
[null,null,null,null,null,null,null,null,0,null,null,null,0,0,null,null,null,null,0,0,0]
[null,null,null,null,null,null,null,null,0,null,null,null,0,0,null,null,null,null,0,0,0]
[null,null,null,null,null,null,null,null,0,null,null,null,0,0,null,null,null,null,0,0,0]
[null,null,null,null,null,null,null,null,0,null,null,null,0,0,null,null,null,null,0,0,0]
[null,null,null,null,null,null,null,null,0,null,null,null,0,0,null,null,null,null,0,0,0]
[null,null,null,null,null,null,null,null,0,null,null,null,0,0,null,null,null,null,0,0,0]
[null,null,null,null,null,null,null,null,0,null,null,null,{"$f":"SUM(I1356:L1356)","v":0},0,null,null,null,null,{"$f":"SUM(N1356:R1356)","v":0},{"$f":"I1356+N1356","v":0},{"$f":"M1356+S1356","v":0}]
[null,null,null,null,null,null,null,null,0,null,null,null,0,0,null,null,null,null,0,0,0]
[null,null,null,null,null,null,null,null,0,null,null,null,0,0,null,null,null,null,0,0,0]
[null,null,null,null,null,null,null,null,0,null,null,null,0,0,null,null,null,null,0,0,0]
[null,null,null,null,null,null,null,null,0,null,null,null,0,0,null,null,null,null,0,0,0]
[null,null,null,null,null,null,null,null,0,null,null,null,0,0,null,null,null,null,0,0,0]
[null,null,null,null,null,null,null,null,0,null,null,null,0,0,null,null,null,null,0,0,0]
[null,null,null,null,null,null,null,null,0,null,null,null,0,0,null,null,null,null,0,0,0]
[null,null,null,null,null,null,null,null,0,null,null,null,0,0,null,null,null,null,0,0,0]
[null,null,null,null,null,null,null,null,0,null,null,null,0,0,null,null,null,null,0,0,0]
[null,null,null,null,null,null,null,null,0,null,null,null,0,0,null,null,null,null,0,0,0]
[null,null,null,null,null,null,null,null,0,null,null,null,0,0,null,null,null,null,0,0,0]
[null,null,null,null,null,null,null,null,0,null,null,null,0,0,null,null,null,null,0,0,0]
[null,null,null,null,null,null,null,null,0,null,null,null,0,0,null,null,null,null,0,0,0]
[null,null,null,null,null,null,null,null,0,null,null,null,0,0,null,null,null,null,0,0,0]
[null,null,null,null,null,null,null,null,0,null,null,null,0,0,null,null,null,null,0,0,0]
[null,null,null,null,null,null,null,null,0,null,null,null,0,0,null,null,null,null,0,0,0]
[null,null,null,null,null,null,null,null,0,null,null,null,0,0,null,null,null,null,0,0,0]
[null,null,null,null,null,null,null,null,0,null,null,null,0,0,null,null,null,null,0,0,0]
[null,null,null,null,null,null,null,null,0,null,null,null,0,0,null,null,null,null,0,0,0]
[null,null,null,null,null,null,null,null,0,null,null,null,0,0,null,null,null,null,0,0,0]
[null,null,null,null,null,null,null,null,0,null,null,null,0,0,null,null,null,null,0,0,0]
[null,null,null,null,null,null,null,null,0,null,null,null,0,0,null,null,null,null,0,0,0]
[null,null,null,null,null,null,null,null,0,null,null,null,0,0,null,null,null,null,0,0,0]
[null,null,null,null,null,null,null,null,0,null,null,null,0,0,null,null,null,null,0,0,0]
[null,null,null,null,null,null,null,null,0,null,null,null,0,0,null,null,null,null,0,0,0]
[null,null,null,null,null,null,null,null,0,null,null,null,0,0,null,null,null,null,0,0,0]
[null,null,null,null,null,null,null,null,0,null,null,null,0,0,null,null,null,null,0,0,0]
[null,null,null,null,null,null,null,null,0,null,null,null,0,0,null,null,null,null,0,0,0]
[null,null,null,null,null,null,null,null,0,null,null,null,0,0,null,null,null,null,0,0,0]
[null,null,null,null,null,null,null,null,0,null,null,null,0,0,null,null,null,null,0,0,0]
[null,null,null,null,null,null,null,null,0,null,null,null,0,0,null,null,null,null,0,0,0]
[null,null,null,null,null,null,null,null,0,null,null,null,0,0,null,null,null,null,0,0,0]
[null,null,null,null,null,null,null,null,0,null,null,null,0,0,null,null,null,null,0,0,0]
[null,null,null,null,null,null,null,null,0,null,null,null,0,0,null,null,null,null,0,0,0]
[null,null,null,null,null,null,null,null,0,null,null,null,0,0,null,null,null,null,0,0,0]
[null,null,null,null,null,null,null,null,0,null,null,null,0,0,null,null,null,null,0,0,0]
[null,null,null,null,null,null,null,null,0,null,null,null,0,0,null,null,null,null,0,0,0]
[null,null,null,null,null,null,null,null,0,null,null,null,0,0,null,null,null,null,0,0,0]
[null,null,null,null,null,null,null,null,0,null,null,null,0,0,null,null,null,null,0,0,0]
[null,null,null,null,null,null,null,null,0,null,null,null,0,0,null,null,null,null,0,0,0]
[null,null,null,null,null,null,null,null,0,null,null,null,0,0,null,null,null,null,0,0,0]
[null,null,null,null,null,null,null,null,0,null,null,null,0,0,null,null,null,null,0,0,0]
[null,null,null,null,null,null,null,null,0,null,null,null,0,0,null,null,null,null,0,0,0]
[null,null,null,null,null,null,null,null,0,null,null,null,0,0,null,null,null,null,0,0,0]
[null,null,null,null,null,null,null,null,0,null,null,null,0,0,null,null,null,null,0,0,0]
[null,null,null,null,null,null,null,null,0,null,null,null,0,0,null,null,null,null,0,0,0]
[null,null,null,null,null,null,null,null,0,null,null,null,0,0,null,null,null,null,0,0,0]
[null,null,null,null,null,null,null,null,0,null,null,null,0,0,null,null,null,null,0,0,0]
[null,null,null,null,null,null,null,null,0,null,null,null,0,0,null,null,null,null,0,0,0]
[null,null,null,null,null,null,null,null,0,null,null,null,0,0,null,null,null,null,0,0,0]
[null,null,null,null,null,null,null,null,0,null,null,null,0,0,null,null,null,null,0,0,0]
[null,null,null,null,null,null,null,null,0,null,null,null,0,0,null,null,null,null,0,0,0]
[null,null,null,null,null,null,null,null,0,null,null,null,0,0,null,null,null,null,0,0,0]
[null,null,null,null,null,null,null,null,0,null,null,null,0,0,null,null,null,null,0,0,0]
[null,null,null,null,null,null,null,null,0,null,null,null,0,0,null,null,null,null,0,0,0]
[null,null,null,null,null,null,null,null,0,null,null,null,0,0,null,null,null,null,0,0,0]
[null,null,null,null,null,null,null,null,0,null,null,null,0,0,null,null,null,null,0,0,0]
[null,null,null,null,null,null,null,null,0,null,null,null,0,0,null,null,null,null,0,0,0]
[null,null,null,null,null,null,null,null,0,null,null,null,0,0,null,null,null,null,0,0,0]
[null,null,null,null,null,null,null,null,0,null,null,null,0,0,null,null,null,null,0,0,0]
[null,null,null,null,null,null,null,null,0,null,null,null,0,0,null,null,null,null,0,0,0]
[null,null,null,null,null,null,null,null,0,null,null,null,0,0,null,null,null,null,0,0,0]
[null,null,null,null,null,null,null,null,0,null,null,null,0,0,null,null,null,null,0,0,0]
[null,null,null,null,null,null,null,null,0,null,null,null,{"$f":"SUM(I1420:L1420)","v":0},0,null,null,null,null,{"$f":"SUM(N1420:R1420)","v":0},{"$f":"I1420+N1420","v":0},{"$f":"M1420+S1420","v":0}]
[null,null,null,null,null,null,null,null,0,null,null,null,0,0,null,null,null,null,0,0,0]
[null,null,null,null,null,null,null,null,0,null,null,null,0,0,null,null,null,null,0,0,0]
[null,null,null,null,null,null,null,null,0,null,null,null,0,0,null,null,null,null,0,0,0]
[null,null,null,null,null,null,null,null,0,null,null,null,0,0,null,null,null,null,0,0,0]
[null,null,null,null,null,null,null,null,0,null,null,null,0,0,null,null,null,null,0,0,0]
[null,null,null,null,null,null,null,null,0,null,null,null,0,0,null,null,null,null,0,0,0]
[null,null,null,null,null,null,null,null,0,null,null,null,0,0,null,null,null,null,0,0,0]
[null,null,null,null,null,null,null,null,0,null,null,null,0,0,null,null,null,null,0,0,0]
[null,null,null,null,null,null,null,null,0,null,null,null,0,0,null,null,null,null,0,0,0]
[null,null,null,null,null,null,null,null,0,null,null,null,0,0,null,null,null,null,0,0,0]
[null,null,null,null,null,null,null,null,0,null,null,null,0,0,null,null,null,null,0,0,0]
[null,null,null,null,null,null,null,null,0,null,null,null,0,0,null,null,null,null,0,0,0]
[null,null,null,null,null,null,null,null,0,null,null,null,0,0,null,null,null,null,0,0,0]
[null,null,null,null,null,null,null,null,0,null,null,null,0,0,null,null,null,null,0,0,0]
[null,null,null,null,null,null,null,null,0,null,null,null,0,0,null,null,null,null,0,0,0]
[null,null,null,null,null,null,null,null,0,null,null,null,0,0,null,null,null,null,0,0,0]
[null,null,null,null,null,null,null,null,0,null,null,null,0,0,null,null,null,null,0,0,0]
[null,null,null,null,null,null,null,null,0,null,null,null,0,0,null,null,null,null,0,0,0]
[null,null,null,null,null,null,null,null,0,null,null,null,0,0,null,null,null,null,0,0,0]
[null,null,null,null,null,null,null,null,0,null,null,null,0,0,null,null,null,null,0,0,0]
[null,null,null,null,null,null,null,null,0,null,null,null,0,0,null,null,null,null,0,0,0]
[null,null,null,null,null,null,null,null,0,null,null,null,0,0,null,null,null,null,0,0,0]
[null,null,null,null,null,null,null,null,0,null,null,null,0,0,null,null,null,null,0,0,0]
[null,null,null,null,null,null,null,null,0,null,null,null,0,0,null,null,null,null,0,0,0]
[null,null,null,null,null,null,null,null,0,null,null,null,0,0,null,null,null,null,0,0,0]
[null,null,null,null,null,null,null,null,0,null,null,null,0,0,null,null,null,null,0,0,0]
[null,null,null,null,null,null,null,null,0,null,null,null,0,0,null,null,null,null,0,0,0]
[null,null,null,null,null,null,null,null,0,null,null,null,0,0,null,null,null,null,0,0,0]
[null,null,null,null,null,null,null,null,0,null,null,null,0,0,null,null,null,null,0,0,0]
[null,null,null,null,null,null,null,null,0,null,null,null,0,0,null,null,null,null,0,0,0]
[null,null,null,null,null,null,null,null,0,null,null,null,0,0,null,null,null,null,0,0,0]
[null,null,null,null,null,null,null,null,0,null,null,null,0,0,null,null,null,null,0,0,0]
[null,null,null,null,null,null,null,null,0,null,null,null,0,0,null,null,null,null,0,0,0]
[null,null,null,null,null,null,null,null,0,null,null,null,0,0,null,null,null,null,0,0,0]
[null,null,null,null,null,null,null,null,0,null,null,null,0,0,null,null,null,null,0,0,0]
[null,null,null,null,null,null,null,null,0,null,null,null,0,0,null,null,null,null,0,0,0]
[null,null,null,null,null,null,null,null,0,null,null,null,0,0,null,null,null,null,0,0,0]
[null,null,null,null,null,null,null,null,0,null,null,null,0,0,null,null,null,null,0,0,0]
[null,null,null,null,null,null,null,null,0,null,null,null,0,0,null,null,null,null,0,0,0]
[null,null,null,null,null,null,null,null,0,null,null,null,0,0,null,null,null,null,0,0,0]
[null,null,null,null,null,null,null,null,0,null,null,null,0,0,null,null,null,null,0,0,0]
[null,null,null,null,null,null,null,null,0,null,null,null,0,0,null,null,null,null,0,0,0]
[null,null,null,null,null,null,null,null,0,null,null,null,0,0,null,null,null,null,0,0,0]
[null,null,null,null,null,null,null,null,0,null,null,null,0,0,null,null,null,null,0,0,0]
[null,null,null,null,null,null,null,null,0,null,null,null,0,0,null,null,null,null,0,0,0]
[null,null,null,null,null,null,null,null,0,null,null,null,0,0,null,null,null,null,0,0,0]
[null,null,null,null,null,null,null,null,0,null,null,null,0,0,null,null,null,null,0,0,0]
[null,null,null,null,null,null,null,null,0,null,null,null,0,0,null,null,null,null,0,0,0]
[null,null,null,null,null,null,null,null,0,null,null,null,0,0,null,null,null,null,0,0,0]
[null,null,null,null,null,null,null,null,0,null,null,null,0,0,null,null,null,null,0,0,0]
[null,null,null,null,null,null,null,null,0,null,null,null,0,0,null,null,null,null,0,0,0]
[null,null,null,null,null,null,null,null,0,null,null,null,0,0,null,null,null,null,0,0,0]
[null,null,null,null,null,null,null,null,0,null,null,null,0,0,null,null,null,null,0,0,0]
[null,null,null,null,null,null,null,null,0,null,null,null,0,0,null,null,null,null,0,0,0]
[null,null,null,null,null,null,null,null,0,null,null,null,0,0,null,null,null,null,0,0,0]
[null,null,null,null,null,null,null,null,0,null,null,null,0,0,null,null,null,null,0,0,0]
[null,null,null,null,null,null,null,null,0,null,null,null,0,0,null,null,null,null,0,0,0]
[null,null,null,null,null,null,null,null,0,null,null,null,0,0,null,null,null,null,0,0,0]
[null,null,null,null,null,null,null,null,0,null,null,null,0,0,null,null,null,null,0,0,0]
[null,null,null,null,null,null,null,null,0,null,null,null,0,0,null,null,null,null,0,0,0]
[null,null,null,null,null,null,null,null,0,null,null,null,0,0,null,null,null,null,0,0,0]
[null,null,null,null,null,null,null,null,0,null,null,null,0,0,null,null,null,null,0,0,0]
[null,null,null,null,null,null,null,null,0,null,null,null,0,0,null,null,null,null,0,0,0]
[null,null,null,null,null,null,null,null,0,null,null,null,{"$f":"SUM(I1484:L1484)","v":0},0,null,null,null,null,{"$f":"SUM(N1484:R1484)","v":0},{"$f":"I1484+N1484","v":0},{"$f":"M1484+S1484","v":0}]
[null,null,null,null,null,null,null,null,0,null,null,null,0,0,null,null,null,null,0,0,0]
[null,null,null,null,null,null,null,null,0,null,null,null,0,0,null,null,null,null,0,0,0]
[null,null,null,null,null,null,null,null,0,null,null,null,0,0,null,null,null,null,0,0,0]
[null,null,null,null,null,null,null,null,0,null,null,null,0,0,null,null,null,null,0,0,0]
[null,null,null,null,null,null,null,null,0,null,null,null,0,0,null,null,null,null,0,0,0]
[null,null,null,null,null,null,null,null,0,null,null,null,0,0,null,null,null,null,0,0,0]
[null,null,null,null,null,null,null,null,0,null,null,null,0,0,null,null,null,null,0,0,0]
[null,null,null,null,null,null,null,null,0,null,null,null,0,0,null,null,null,null,0,0,0]
[null,null,null,null,null,null,null,null,0,null,null,null,0,0,null,null,null,null,0,0,0]
[null,null,null,null,null,null,null,null,0,null,null,null,0,0,null,null,null,null,0,0,0]
[null,null,null,null,null,null,null,null,0,null,null,null,0,0,null,null,null,null,0,0,0]
[null,null,null,null,null,null,null,null,0,null,null,null,0,0,null,null,null,null,0,0,0]
[null,null,null,null,null,null,null,null,0,null,null,null,0,0,null,null,null,null,0,0,0]
[null,null,null,null,null,null,null,null,0,null,null,null,0,0,null,null,null,null,0,0,0]
[null,null,null,null,null,null,null,null,0,null,null,null,0,0,null,null,null,null,0,0,0]
[null,null,null,null,null,null,null,null,0,null,null,null,0,0,null,null,null,null,0,0,0]
[null,null,null,null,null,null,null,null,0,null,null,null,0,0,null,null,null,null,0,0,0]
[null,null,null,null,null,null,null,null,0,null,null,null,0,0,null,null,null,null,0,0,0]
[null,null,null,null,null,null,null,null,0,null,null,null,{"$f":"SUM(I1503:L1503)","v":0},0,null,null,null,null,{"$f":"SUM(N1503:R1503)","v":0},{"$f":"I1503+N1503","v":0},{"$f":"M1503+S1503","v":0}]

{"sheet":"Anlagespiegel FV","index":3,"n_rows":20,"n_cols":11,"rows_kept":20,"cut":false,"hidden":false,"merged":[[3,2,3,4],[3,5,3,9],[1,8,1,10],[0,8,0,10]]}
["Anlagespiegel Finanz- und Sachanlagen des Finanzvermögens",null,null,null,null,null,null,null,{"$f":"\"Rechnungsjahr \"&TEXT(Titelseite!D20,\"0\")","v":"Rechnungsjahr 2019"}]
[null,null,null,null,null,null,null,null,{"$f":"Titelseite!A18","v":"Gemeinde Musterhausen"}]
[]
["Konto",null,"Anschaffungskosten",null,null,"Kumulierte Wertberichtigungen",null,null,null,null,"Buchwert"]
[null,null,"Stand \nper 01.01.","Zugänge (+)\nAbgänge (-)\nUmglied. (+/-)","Stand \nper 31.12.","Stand \nper 01.01. (+/-)","Wert-\nberichtigungen (-)","Wert-\naufholungen (+)","Abgänge (+/-)\nUmglied. (+/-)","Stand \nper 31.12.","Stand \nper 31.12."]
[]
[]
[107,"Langfristige Finanzanlagen",{"$f":"SUM(C9:C12)","v":0},0,0,0,0,0,0,0,0]
[1070,"Aktien und Anteilscheine",{"$f":"SUMIF(Anlagenübersicht!$H$12:$H$1502,\"1070 Aktien und Anteilscheine\",Anlagenübersicht!$I$12:$I$1502)","v":0},{"$f":"SUMIF(Anlagenübersicht!$H$12:$H$1502,\"1070 Aktien und Anteilscheine\",Anlagenübersicht!$J$12:$J$1502)+SUMIF(Anlagenübersicht!$H$12:$H$1502,\"1070 Aktien und Anteilscheine\",Anlagenübersicht!$K$12:$K$1502)+SUMIF(Anlagenübersicht!$H$12:$H$1502,\"1070 Aktien und Anteilscheine\",Anlagenübersicht!$L$12:$L$1502)","v":0},{"$f":"C9+D9","v":0},{"$f":"SUMIF(Anlagenübersicht!$H$12:$H$1502,\"1070 Aktien und Anteilscheine\",Anlagenübersicht!$N$12:$N$1502)","v":0},{"$f":"SUMIF(Anlagenübersicht!$H$12:$H$1502,\"1070 Aktien und Anteilscheine\",Anlagenübersicht!$O$12:$O$1502)","v":0},{"$f":"SUMIF(Anlagenübersicht!$H$12:$H$1502,\"1070 Aktien und Anteilscheine\",Anlagenübersicht!$P$12:$P$1502)","v":0},{"$f":"SUMIF(Anlagenübersicht!$H$12:$H$1502,\"1070 Aktien und Anteilscheine\",Anlagenübersicht!$Q$12:$Q$1502)+SUMIF(Anlagenübersicht!$H$12:$H$1502,\"1070 Aktien und Anteilscheine\",Anlagenübersicht!$R$12:$R$1502)","v":0},{"$f":"SUM(F9:I9)","v":0},{"$f":"E9+J9","v":0}]
[1071,"Verzinsliche Anlagen",{"$f":"SUMIF(Anlagenübersicht!$H$12:$H$1502,\"1071 Verzinsliche Anlagen\",Anlagenübersicht!$I$12:$I$1502)","v":0},{"$f":"SUMIF(Anlagenübersicht!$H$12:$H$1502,\"1071 Verzinsliche Anlagen\",Anlagenübersicht!$J$12:$J$1502)+SUMIF(Anlagenübersicht!$H$12:$H$1502,\"1071 Verzinsliche Anlagen\",Anlagenübersicht!$K$12:$K$1502)+SUMIF(Anlagenübersicht!$H$12:$H$1502,\"1071 Verzinsliche Anlagen\",Anlagenübersicht!$L$12:$L$1502)","v":0},{"$f":"C10+D10","v":0},{"$f":"SUMIF(Anlagenübersicht!$H$12:$H$1502,\"1071 Verzinsliche Anlagen\",Anlagenübersicht!$N$12:$N$1502)","v":0},{"$f":"SUMIF(Anlagenübersicht!$H$12:$H$1502,\"1071 Verzinsliche Anlagen\",Anlagenübersicht!$O$12:$O$1502)","v":0},{"$f":"SUMIF(Anlagenübersicht!$H$12:$H$1502,\"1071 Verzinsliche Anlagen\",Anlagenübersicht!$P$12:$P$1502)","v":0},{"$f":"SUMIF(Anlagenübersicht!$H$12:$H$1502,\"1071 Verzinsliche Anlagen\",Anlagenübersicht!$Q$12:$Q$1502)+SUMIF(Anlagenübersicht!$H$12:$H$1502,\"1071 Verzinsliche Anlagen\",Anlagenübersicht!$R$12:$R$1502)","v":0},{"$f":"SUM(F10:I10)","v":0},{"$f":"E10+J10","v":0}]
[1072,"Langfristige Forderungen",{"$f":"SUMIF(Anlagenübersicht!$H$12:$H$1502,\"1072 Langfristige Forderungen\",Anlagenübersicht!$I$12:$I$1502)","v":0},{"$f":"SUMIF(Anlagenübersicht!$H$12:$H$1502,\"1072 Langfristige Forderungen\",Anlagenübersicht!$J$12:$J$1502)+SUMIF(Anlagenübersicht!$H$12:$H$1502,\"1072 Langfristige Forderungen\",Anlagenübersicht!$K$12:$K$1502)+SUMIF(Anlagenübersicht!$H$12:$H$1502,\"1072 Langfristige Forderungen\",Anlagenübersicht!$L$12:$L$1502)","v":0},0,{"$f":"SUMIF(Anlagenübersicht!$H$12:$H$1502,\"1072 Langfristige Forderungen\",Anlagenübersicht!$N$12:$N$1502)","v":0},{"$f":"SUMIF(Anlagenübersicht!$H$12:$H$1502,\"1072 Langfristige Forderungen\",Anlagenübersicht!$O$12:$O$1502)","v":0},{"$f":"SUMIF(Anlagenübersicht!$H$12:$H$1502,\"1072 Langfristige Forderungen\",Anlagenübersicht!$P$12:$P$1502)","v":0},{"$f":"SUMIF(Anlagenübersicht!$H$12:$H$1502,\"1072 Langfristige Forderungen\",Anlagenübersicht!$Q$12:$Q$1502)+SUMIF(Anlagenübersicht!$H$12:$H$1502,\"1072 Langfristige Forderungen\",Anlagenübersicht!$R$12:$R$1502)","v":0},{"$f":"SUM(F11:I11)","v":0},{"$f":"E11+J11","v":0}]
[1079,"Übrige langfristige Finanzanlagen",{"$f":"SUMIF(Anlagenübersicht!$H$12:$H$1502,\"1079 Übrige langfristige Finanzanlagen\",Anlagenübersicht!$I$12:$I$1502)","v":0},{"$f":"SUMIF(Anlagenübersicht!$H$12:$H$1502,\"1079 Übrige langfristige Finanzanlagen\",Anlagenübersicht!$J$12:$J$1502)+SUMIF(Anlagenübersicht!$H$12:$H$1502,\"1079 Übrige langfristige Finanzanlagen\",Anlagenübersicht!$K$12:$K$1502)+SUMIF(Anlagenübersicht!$H$12:$H$1502,\"1079 Übrige langfristige Finanzanlagen\",Anlagenübersicht!$L$12:$L$1502)","v":0},0,{"$f":"SUMIF(Anlagenübersicht!$H$12:$H$1502,\"1079 Übrige langfristige Finanzanlagen\",Anlagenübersicht!$N$12:$N$1502)","v":0},{"$f":"SUMIF(Anlagenübersicht!$H$12:$H$1502,\"1079 Übrige langfristige Finanzanlagen\",Anlagenübersicht!$O$12:$O$1502)","v":0},{"$f":"SUMIF(Anlagenübersicht!$H$12:$H$1502,\"1079 Übrige langfristige Finanzanlagen\",Anlagenübersicht!$P$12:$P$1502)","v":0},{"$f":"SUMIF(Anlagenübersicht!$H$12:$H$1502,\"1079 Übrige langfristige Finanzanlagen\",Anlagenübersicht!$Q$12:$Q$1502)+SUMIF(Anlagenübersicht!$H$12:$H$1502,\"1079 Übrige langfristige Finanzanlagen\",Anlagenübersicht!$R$12:$R$1502)","v":0},{"$f":"SUM(F12:I12)","v":0},{"$f":"E12+J12","v":0}]
[]
[108,"Sach- und immaterielle Anlagen FV",{"$f":"SUM(C15:C18)","v":0},{"$f":"SUM(D15:D18)","v":0},{"$f":"SUM(E15:E18)","v":0},{"$f":"SUM(F15:F18)","v":0},{"$f":"SUM(G15:G18)","v":0},0,0,0,{"$f":"SUM(K15:K18)","v":0}]
[1080,"Grundstücke FV",{"$f":"SUMIF(Anlagenübersicht!$H$12:$H$1502,\"1080 Grundstücke FV\",Anlagenübersicht!$I$12:$I$1502)","v":0},{"$f":"SUMIF(Anlagenübersicht!$H$12:$H$1502,\"1080 Grundstücke FV\",Anlagenübersicht!$J$12:$J$1502)+SUMIF(Anlagenübersicht!$H$12:$H$1502,\"1080 Grundstücke FV\",Anlagenübersicht!$K$12:$K$1502)+SUMIF(Anlagenübersicht!$H$12:$H$1502,\"1080 Grundstücke FV\",Anlagenübersicht!$L$12:$L$1502)","v":0},{"$f":"C15+D15","v":0},{"$f":"SUMIF(Anlagenübersicht!$H$12:$H$1502,\"1080 Grundstücke FV\",Anlagenübersicht!$N$12:$N$1502)","v":0},{"$f":"SUMIF(Anlagenübersicht!$H$12:$H$1502,\"1080 Grundstücke FV\",Anlagenübersicht!$O$12:$O$1502)","v":0},{"$f":"SUMIF(Anlagenübersicht!$H$12:$H$1502,\"1080 Grundstücke FV\",Anlagenübersicht!$P$12:$P$1502)","v":0},{"$f":"SUMIF(Anlagenübersicht!$H$12:$H$1502,\"1080 Grundstücke FV\",Anlagenübersicht!$Q$12:$Q$1502)+SUMIF(Anlagenübersicht!$H$12:$H$1502,\"1080 Grundstücke FV\",Anlagenübersicht!$R$12:$R$1502)","v":0},{"$f":"SUM(F15:I15)","v":0},{"$f":"E15+J15","v":0}]
[1084,"Gebäude FV",{"$f":"SUMIF(Anlagenübersicht!$H$12:$H$1502,\"1084 Gebäude FV\",Anlagenübersicht!$I$12:$I$1502)","v":0},{"$f":"SUMIF(Anlagenübersicht!$H$12:$H$1502,\"1084 Gebäude FV\",Anlagenübersicht!$J$12:$J$1502)+SUMIF(Anlagenübersicht!$H$12:$H$1502,\"1084 Gebäude FV\",Anlagenübersicht!$K$12:$K$1502)+SUMIF(Anlagenübersicht!$H$12:$H$1502,\"1084 Gebäude FV\",Anlagenübersicht!$L$12:$L$1502)","v":0},{"$f":"C16+D16","v":0},{"$f":"SUMIF(Anlagenübersicht!$H$12:$H$1502,\"1084 Gebäude FV\",Anlagenübersicht!$N$12:$N$1502)","v":0},{"$f":"SUMIF(Anlagenübersicht!$H$12:$H$1502,\"1084 Gebäude FV\",Anlagenübersicht!$O$12:$O$1502)","v":0},{"$f":"SUMIF(Anlagenübersicht!$H$12:$H$1502,\"1084 Gebäude FV\",Anlagenübersicht!$P$12:$P$1502)","v":0},{"$f":"SUMIF(Anlagenübersicht!$H$12:$H$1502,\"1084 Gebäude FV\",Anlagenübersicht!$Q$12:$Q$1502)+SUMIF(Anlagenübersicht!$H$12:$H$1502,\"1084 Gebäude FV\",Anlagenübersicht!$R$12:$R$1502)","v":0},{"$f":"SUM(F16:I16)","v":0},{"$f":"E16+J16","v":0}]
[1086,"Mobilien FV",{"$f":"SUMIF(Anlagenübersicht!$H$12:$H$1502,\"1086 Mobilien FV\",Anlagenübersicht!$I$12:$I$1502)","v":0},{"$f":"SUMIF(Anlagenübersicht!$H$12:$H$1502,\"1086 Mobilien FV\",Anlagenübersicht!$J$12:$J$1502)+SUMIF(Anlagenübersicht!$H$12:$H$1502,\"1086 Mobilien FV\",Anlagenübersicht!$K$12:$K$1502)+SUMIF(Anlagenübersicht!$H$12:$H$1502,\"1086 Mobilien FV\",Anlagenübersicht!$L$12:$L$1502)","v":0},0,{"$f":"SUMIF(Anlagenübersicht!$H$12:$H$1502,\"1086 Mobilien FV\",Anlagenübersicht!$N$12:$N$1502)","v":0},{"$f":"SUMIF(Anlagenübersicht!$H$12:$H$1502,\"1086 Mobilien FV\",Anlagenübersicht!$O$12:$O$1502)","v":0},{"$f":"SUMIF(Anlagenübersicht!$H$12:$H$1502,\"1086 Mobilien FV\",Anlagenübersicht!$P$12:$P$1502)","v":0},{"$f":"SUMIF(Anlagenübersicht!$H$12:$H$1502,\"1086 Mobilien FV\",Anlagenübersicht!$Q$12:$Q$1502)+SUMIF(Anlagenübersicht!$H$12:$H$1502,\"1086 Mobilien FV\",Anlagenübersicht!$R$12:$R$1502)","v":0},{"$f":"SUM(F17:I17)","v":0},{"$f":"E17+J17","v":0}]
[1089,"Übrige Sach- und immaterielle Anlagen FV",{"$f":"SUMIF(Anlagenübersicht!$H$12:$H$1502,\"1089 Übrige Sach- und immaterielle Anlagen FV\",Anlagenübersicht!$I$12:$I$1502)","v":0},{"$f":"SUMIF(Anlagenübersicht!$H$12:$H$1502,\"1089 Übrige Sach- und immaterielle Anlagen FV\",Anlagenübersicht!$J$12:$J$1502)+SUMIF(Anlagenübersicht!$H$12:$H$1502,\"1089 Übrige Sach- und immaterielle Anlagen FV\",Anlagenübersicht!$K$12:$K$1502)+SUMIF(Anlagenübersicht!$H$12:$H$1502,\"1089 Übrige Sach- und immaterielle Anlagen FV\",Anlagenübersicht!$L$12:$L$1502)","v":0},0,{"$f":"SUMIF(Anlagenübersicht!$H$12:$H$1502,\"1089 Übrige Sach- und immaterielle Anlagen FV\",Anlagenübersicht!$N$12:$N$1502)","v":0},{"$f":"SUMIF(Anlagenübersicht!$H$12:$H$1502,\"1089 Übrige Sach- und immaterielle Anlagen FV\",Anlagenübersicht!$O$12:$O$1502)","v":0},{"$f":"SUMIF(Anlagenübersicht!$H$12:$H$1502,\"1089 Übrige Sach- und immaterielle Anlagen FV\",Anlagenübersicht!$P$12:$P$1502)","v":0},{"$f":"SUMIF(Anlagenübersicht!$H$12:$H$1502,\"1089 Übrige Sach- und immaterielle Anlagen FV\",Anlagenübersicht!$Q$12:$Q$1502)+SUMIF(Anlagenübersicht!$H$12:$H$1502,\"1089 Übrige Sach- und immaterielle Anlagen FV\",Anlagenübersicht!$R$12:$R$1502)","v":0},{"$f":"SUM(F18:I18)","v":0},{"$f":"E18+J18","v":0}]
[]
[null,"Total",{"$f":"C8+C14","v":0},{"$f":"D8+D14","v":0},0,0,0,0,0,0,0]